{"text_format":"1","workbook":"xlsx","n_sheets":11,"sheets":["Sommaire","Type marques","Historiq","Circuits","HistoriqCircuits","Familles Plus","Familles Moins","Familles HD","Familles Plus mensuel","Familles moins mensuel ","Régions"],"not_rendered":{"charts":5,"images":8,"macros":1,"external_links":1,"defined_names":9,"comments":0,"pivot_tables":0},"unopened":[],"bounds":{"document_bytes":16777216,"sheet_cells":100000,"rows_first":2000,"rows_last":500,"rows_between":2000,"halvings":0,"cell_chars":16384,"cell_head_chars":4096},"cells_cut":0,"cells_raw":0,"read":"whole","date_system":"1900"}

{"sheet":"Sommaire","index":0,"n_rows":19,"n_cols":15,"rows_kept":19,"cut":false,"hidden":false,"merged":[[18,1,18,8],[2,12,2,13]]}
[]
[]
[null,null,null,null,null,null,null,null,null,null,null,null,"cliquez ici SVP",null,"G "]
[]
[null,null,null,null,null,null,null,null,null,null,"¥ ","Inflation à un an- Par Types de Marques en GMS",null,null,"Marques"]
[]
[null,null,null,null,null,null,null,null,null,null,"¥ ","Graphe - Historique Inflation à un an par Types de Marques",null,null,"Histo Marques"]
[]
[null,null,null,null,null,null,null,null,null,null,"¥ ","Inflation à un an- Par Circuits",null,null,"Circuits"]
[]
[null,null,null,null,null,null,null,null,null,null,"¥ ","Graphe - Historique Inflation à un an par Type de Circuits",null,null,"Histo Circuits"]
[]
[null,null,null,null,null,null,null,null,null,null,"¥ ","Tableau - 10 familles les + inflationnistes",null,null,"Familles +"]
[]
[null,null,null,null,null,null,null,null,null,null,"¥ ","Tableau - 10 familles les - inflationnistes",null,null,"Familles -"]
[]
[null,null,null,null,null,null,null,null,null,null,"¥ ","Tableaux - Familles les + et les - inflationnistes en HD",null,null,"Familles + & -"]
[]
[null,"2015-01-01",null,null,null,null,null,null,null,null,"¥ ","Inflation à un an- Par Régions",null,null,"Régions"]

{"sheet":"Type marques","index":1,"n_rows":21,"n_cols":21,"rows_kept":21,"cut":false,"hidden":false,"merged":[[10,1,10,3],[1,1,2,2]]}
[]
[null,"Retour au sommaire"]
[null,null,null,null,null,null,null,null,null,null,null,null,null,null,null,null,null,"EXHAUSTIF","MDD","PPX","MFAB"]
[null,null,null,null,null,null,null,null,null,null,null,null,null,null,null,null,"Total EPICERIE",-2.17,0.24,1.02,-3.2]
[null,null,null,null,null,null,null,null,null,null,null,null,null,null,null,null,"Total LIQUIDES",-1.5,1.45,0.13,-2.68]
[null,null,null,null,null,null,null,null,null,null,null,null,null,null,null,null,"Total D.P.H.",-3.15,-0.99,-0.28999999999999998,-3.82]
[null,null,null,null,null,null,null,null,null,null,null,null,null,null,null,null,"Total Produits Frais",-1.28,-0.06,-0.03,-2.19]
[null,null,null,null,null,null,null,null,null,null,null,null,null,null,null,null,"Total Non Alimentaire",-1.82,-1.56,-0.71,-2.09]
[null,null,null,null,null,null,null,null,null,null,null,null,null,null,null,null,"Total P.G.C.",-2.35,0.12,0.6,-3.31]
[null,null,null,null,null,null,null,null,null,null,null,null,null,null,null,null,"Total Alimentaire",-2.09,0.06,0.43,-3.09]
[null,null,null,null,null,"EXHAUSTIF",null,"MARQUES FABRICANTS",null,"MDD",null,"PPX",null,null,null,null,"Total GENERAL",-2.08,0,0.37,-3.06]
[null," ---EPICERIE",null,null,null,{"$f":"+R4","v":-2.17},null,{"$f":"+U4","v":-3.2},null,{"$f":"+S4","v":0.24},null,{"$f":"+T4","v":1.02}]
[null," ---LIQUIDES",null,null,null,{"$f":"+R5","v":-1.5},null,{"$f":"+U5","v":-2.68},null,{"$f":"+S5","v":1.45},null,{"$f":"+T5","v":0.13}]
[null," ---D.P.H.",null,null,null,{"$f":"+R6","v":-3.15},null,{"$f":"+U6","v":-3.82},null,{"$f":"+S6","v":-0.99},null,{"$f":"+T6","v":-0.28999999999999998}]
[null," --P.G.C.",null,null,null,{"$f":"+R9","v":-2.35},null,{"$f":"+U9","v":-3.31},null,{"$f":"+S9","v":0.12},null,{"$f":"+T9","v":0.6}]
[null," --PRODUITS FRAIS L.S.",null,null,null,{"$f":"+R7","v":-1.28},null,{"$f":"+U7","v":-2.19},null,{"$f":"+S7","v":-0.06},null,{"$f":"+T7","v":-0.03}]
[null," -ALIMENTAIRE (PGC+FLS)",null,null,null,{"$f":"+R10","v":-2.09},null,{"$f":"+U10","v":-3.09},null,{"$f":"+S10","v":0.06},null,{"$f":"+T10","v":0.43}]
[null," -NON ALIMENTAIRE",null,null,null,{"$f":"+R8","v":-1.82},null,{"$f":"+U8","v":-2.09},null,{"$f":"+S8","v":-1.56},null,{"$f":"+T8","v":-0.71}]
[null," TOTAL GENERAL",null,null,null,{"$f":"+R11","v":-2.08},null,{"$f":"+U11","v":-3.06},null,{"$f":"+S11","v":0},null,{"$f":"+T11","v":0.37}]
[]
[null,"Exhaustifs : totalité de produits suivis"]

{"sheet":"Historiq","index":2,"n_rows":149,"n_cols":23,"rows_kept":149,"cut":false,"hidden":false,"merged":[[1,1,2,2]]}
[null,null,null,null,null,null,null,null,null,null,null,null,null,null,null,null,"Evolution de l'inflation (inflation annuelle 2003/2002, 2004/2003 etc.)"]
[null,"Retour au sommaire",null,null,null,null,null,null,null,null,null,null,null,null,null,null,"Total circuits - par type de marques, et du Hard-Discount (en exhaustif)"]
[]
[null,null,null,null,null,null,null,null,null,null,null,null,null,null,null,null,"TOTAL GENERAL                            "]
[null,null,null,null,null,null,null,null,null,null,null,null,null,null,null,null,null,"Exhaustifs","MdD","Premiers Prix","Mar. Fabricants","Hard-Discounters","MP HD"]
[null,null,null,null,null,null,null,null,null,null,null,null,null,null,null,null,"2003-01-01",2.23,0.45,1.02,null,-0.05,{"$f":"+V6","v":-0.05}]
[null,null,null,null,null,null,null,null,null,null,null,null,null,null,null,null,"février",2.52,0.48,1.02,null,0.05,0.05]
[null,null,null,null,null,null,null,null,null,null,null,null,null,null,null,null,"mars",2.82,0.67,1.18,null,-0.16,-0.16]
[null,null,null,null,null,null,null,null,null,null,null,null,null,null,null,null,"avril",3.06,0.59,1.46,null,-0.15,-0.15]
[null,null,null,null,null,null,null,null,null,null,null,null,null,null,null,null,"mai",3.02,0.67,1.1499999999999999,null,-0.26,-0.26]
[null,null,null,null,null,null,null,null,null,null,null,null,null,null,null,null,"juin",2.9,0.98,0.99,null,-0.63,-0.63]
[null,null,null,null,null,null,null,null,null,null,null,null,null,null,null,null,"sept.",2.12,0.51,0.39,null,-0.73,-0.73]
[null,null,null,null,null,null,null,null,null,null,null,null,null,null,null,null,"octobre",1.98,0.45,-1.2,null,-0.48,-0.48]
[null,null,null,null,null,null,null,null,null,null,null,null,null,null,null,null,"nov.",1.92,0.36,-0.6,null,-1.02,-1.02]
[null,null,null,null,null,null,null,null,null,null,null,null,null,null,null,null,"déc*",1.9,0.215,-0.85,null,-1.0900000000000001,-1.0900000000000001]
[null,null,null,null,null,null,null,null,null,null,null,null,null,null,null,null,"2004-01-01",1.88,7.0000000000000007E-2,-1.1000000000000001,null,-1.1599999999999999,-1.1599999999999999]
[null,null,null,null,null,null,null,null,null,null,null,null,null,null,null,null,"février",1.78,0.01,-1.43,null,-0.84,-0.84]
[null,null,null,null,null,null,null,null,null,null,null,null,null,null,null,null,"mars",1.63,-0.27,-1.71,null,-0.75,-0.75]
[null,null,null,null,null,null,null,null,null,null,null,null,null,null,null,null,"avril",1.37,-0.46,-2.61,null,-0.95,-0.95]
[null,null,null,null,null,null,null,null,null,null,null,null,null,null,null,null,"mai",1.26,-0.56999999999999995,-2.72,null,-1.03,-1.03]
[null,null,null,null,null,null,null,null,null,null,null,null,null,null,null,null,"juin",1.0900000000000001,-0.74,-3.3,null,-1.1200000000000001,-1.1200000000000001]
[null,null,null,null,null,null,null,null,null,null,null,null,null,null,null,null,"juill**",0.92,-0.9,-3.53,null,-1.1200000000000001,-1.1200000000000001]
[null,null,null,null,null,null,null,null,null,null,null,null,null,null,null,null,"août**",0.57999999999999996,-1.06,-3.76,null,-1.1100000000000001,-1.1100000000000001]
[null,null,null,null,null,null,null,null,null,null,null,null,null,null,null,null,"sept.",-0.05,-1.29,-4.03,null,-1.1100000000000001,-1.1100000000000001]
[null,null,null,null,null,null,null,null,null,null,null,null,null,null,null,null,"oct",-0.38,-1.66,-4.16,null,-1.1499999999999999,-1.1499999999999999]
[null,null,null,null,null,null,null,null,null,null,null,null,null,null,null,null,"nov",-0.6,-1.82,-4.09,null,-1.42,-1.42]
[null,null,null,null,null,null,null,null,null,null,null,null,null,null,null,null,"déc*",-0.81,-2.0299999999999998,-4.1100000000000003,null,-1.53,-1.53]
[null,null,null,null,null,null,null,null,null,null,null,null,null,null,null,null,"2005-01-01",-1.01,-2.2599999999999998,-4.1100000000000003,null,-1.63,-1.63]
[null,null,null,null,null,null,null,null,null,null,null,null,null,null,null,null,"février",-1.17,-2.08,-4.09,null,-1.34,-1.34]
[null,null,null,null,null,null,null,null,null,null,null,null,null,null,null,null,"mars",-1.33,-2.12,-3.86,null,-2.12,-2.12]
[null,null,null,null,null,null,null,null,null,null,null,null,null,null,null,null,"avril",-1.34,-2.2200000000000002,-3.28,null,-1.6,-1.6]
[null,null,null,null,null,null,null,null,null,null,null,null,null,null,null,null,"mai",-1.47,-2.4900000000000002,-3.1,null,-1.58,-1.58]
[null,null,null,null,null,null,null,null,null,null,null,null,null,null,null,null,"juin",-1.52,-2.67,-2.91,null,-1.53,-1.53]
[null,null,null,null,null,null,null,null,null,null,null,null,null,null,null,null,"juillet**",-1,-2.7,-2.4,null,-1.5,-1.5]
[null,null,null,null,null,null,null,null,null,null,null,null,null,null,null,null,"août**",-1,-2.7,-2.4,null,-1.5,-1.5]
[null,null,null,null,null,null,null,null,null,null,null,null,null,null,null,null,"sept.",-0.54,-2.67,-1.83,null,-1.52,-1.52]
[null,null,null,null,null,null,null,null,null,null,null,null,null,null,null,null,"oct.",-0.15,-2.0099999999999998,-1.88,null,-1.41,-1.41]
[null,null,null,null,null,null,null,null,null,null,null,null,null,null,null,null,"nov.",-0.21,-2.4700000000000002,-1.8,null,-1.1200000000000001,{"$f":"+V38","v":-1.1200000000000001}]
[null,null,null,null,null,null,null,null,null,null,null,null,null,null,null,null,"déc.*",-4.9999999999999906E-3,-2.4049999999999998,-1.42,null,-0.93,-0.93]
[null,null,null,null,null,null,null,null,null,null,null,null,null,null,null,null,"2006-01-01",0.2,-2.34,-1.04,null,-0.74,-0.74]
[null,null,null,null,null,null,null,null,null,null,null,null,null,null,null,null,"2006-02-01",0.24,-2.2000000000000002,-0.88,null,-0.4,-0.4]
[null,null,null,null,null,null,null,null,null,null,null,null,null,null,null,null,"2006-03-01",0.41,-1.81,-0.65,null,-0.05,-0.05]
[null,null,null,null,null,null,null,null,null,null,null,null,null,null,null,null,"2006-04-01",0.39,-1.49,-0.34,null,-0.16,-0.16]
[null,null,null,null,null,null,null,null,null,null,null,null,null,null,null,null,"2006-05-01",0.41,-1.1499999999999999,-0.14000000000000001,null,-0.32,-0.32]
[null,null,null,null,null,null,null,null,null,null,null,null,null,null,null,null,"2006-06-01",0.2,-0.85,0.05,null,-0.68,-0.68]
[null,null,null,null,null,null,null,null,null,null,null,null,null,null,null,null,"2006-07-01",0.33750000000000002,-0.375,0.34250000000000003,null,-0.39,-0.39]
[null,null,null,null,null,null,null,null,null,null,null,null,null,null,null,null,"2006-08-01",0.37,0.25,0.73,null,-0.28000000000000003,-0.28000000000000003]
[null,null,null,null,null,null,null,null,null,null,null,null,null,null,null,null,"2006-09-01",0.09,-0.21,0.1,null,-0.31,-0.31]
[null,null,null,null,null,null,null,null,null,null,null,null,null,null,null,null,"2006-10-01",0.15,0.2,0.56999999999999995,null,0.05,0.05]
[null,null,null,null,null,null,null,null,null,null,null,null,null,null,null,null,"2006-11-01",7.0000000000000007E-2,0.36,0.53,null,0.52,0.52]
[null,null,null,null,null,null,null,null,null,null,null,null,null,null,null,null,"déc.*-06",-4.4999999999999998E-2,0.46500000000000002,0.78,null,0.4,0.4]
[null,null,null,null,null,null,null,null,null,null,null,null,null,null,null,null,"2007-01-01",-0.16,0.56999999999999995,1.03,null,0.28000000000000003,0.28000000000000003]
[null,null,null,null,null,null,null,null,null,null,null,null,null,null,null,null,"fev-07",-0.44,0.44,0.95,null,0.43,0.43]
[null,null,null,null,null,null,null,null,null,null,null,null,null,null,null,null,"2007-03-01",-0.1,1.22,1.28,null,0.5,0.5]
[null,null,null,null,null,null,null,null,null,null,null,null,null,null,null,null,"2007-04-01",-0.74,0.6,0.88,null,-0.15,-0.15]
[null,null,null,null,null,null,null,null,null,null,null,null,null,null,null,null,"2007-05-01",-0.74,0.91,1.03,null,-0.13,-0.13]
[null,null,null,null,null,null,null,null,null,null,null,null,null,null,null,null,"2007-06-01",-0.49,1.1100000000000001,1.1399999999999999,null,0.48,0.48]
[null,null,null,null,null,null,null,null,null,null,null,null,null,null,null,null,"2007-07-01",-0.37,1.39,1.43,null,0.68,0.68]
[null,null,null,null,null,null,null,null,null,null,null,null,null,null,null,null,"2007-08-01",-7.0000000000000007E-2,1.9,1.92,null,1.29,1.29]
[null,null,null,null,null,null,null,null,null,null,null,null,null,null,null,null,"2007-09-01",-0.09,1.81,2.2599999999999998,null,1.24,1.24]
[null,null,null,null,null,null,null,null,null,null,null,null,null,null,null,null,"2007-10-01",7.0000000000000007E-2,1.62,2.0099999999999998,null,1.3,1.3]
[null,null,null,null,null,null,null,null,null,null,null,null,null,null,null,null,"2007-11-01",0.43,1.98,2.54,null,0.35,0.35]
[null,null,null,null,null,null,null,null,null,null,null,null,null,null,null,null,"2007-12-01",1.42,2.63,3.43,null,2.0499999999999998,2.0499999999999998]
[null,null,null,null,null,null,null,null,null,null,null,null,null,null,null,null,"2008-01-01",2.39,3.1,3.63,null,3.76,3.76]
[null,null,null,null,null,null,null,null,null,null,null,null,null,null,null,null,"2008-02-01",3.3,3.77,4.55,null,4.07476288256575,4.07476288256575]
[null,null,null,null,null,null,null,null,null,null,null,null,null,null,null,null,"2008-03-01",3.55,3.81,4.8600000000000003,null,3.82,3.82]
[null,null,null,null,null,null,null,null,null,null,null,null,null,null,null,null,"2008-04-01",3.67,3.93,5.2,null,3.77,3.77]
[null,null,null,null,null,null,null,null,null,null,null,null,null,null,null,null,"2008-05-01",3.91,3.8,5.68,null,3.79,3.79]
[null,null,null,null,null,null,null,null,null,null,null,null,null,null,null,null,"2008-06-01",3.86,3.94,6.06,null,3.8,4.0999999999999996]
[null,null,null,null,null,null,null,null,null,null,null,null,null,null,null,null,"2008-07-01",4.04,4.2,6.19,null,4.96,5.2]
[null,null,null,null,null,null,null,null,null,null,null,null,null,null,null,null,"2008-08-01",4.03,4.17,6.48,null,4.3099999999999996,4.6100000000000003]
[null,null,null,null,null,null,null,null,null,null,null,null,null,null,null,null,"2008-09-01",4.12,4.32,6.68,null,3.48,4.72]
[null,null,null,null,null,null,null,null,null,null,null,null,null,null,null,null,"2008-10-01",4.04,4.12,6.54,null,4.05,5.13]
[null,null,null,null,null,null,null,null,null,null,null,null,null,null,null,null,"2008-11-01",3.98,4.08,6.48,null,3.39,4.97]
[null,null,null,null,null,null,null,null,null,null,null,null,null,null,null,null,"2008-12-01",3.06,3.64,6,null,2.21,3.19]
[null,null,null,null,null,null,null,null,null,null,null,null,null,null,null,null,"2009-01-01",2.0099999999999998,2.58,5.17,null,1.71,2.54]
[null,null,null,null,null,null,null,null,null,null,null,null,null,null,null,null,"2009-02-01",1.54,1.91,4.26,null,1.28,2.19]
[null,null,null,null,null,null,null,null,null,null,null,null,null,null,null,null,"2009-03-01",1.29,1.83,3.93,null,0.84,1.84]
[null,null,null,null,null,null,null,null,null,null,null,null,null,null,null,null,"2009-04-01",1.04,1.53,3.39,null,1.51,2.08]
[null,null,null,null,null,null,null,null,null,null,null,null,null,null,null,null,"2009-05-01",0.91,1.19,2.83,null,1.42,1.82]
[null,null,null,null,null,null,null,null,null,null,null,null,null,null,null,null,"2009-06-01",0.81,1.1100000000000001,2.74,null,0.76,1.3]
[null,null,null,null,null,null,null,null,null,null,null,null,null,null,null,null,"2009-07-01",0.56999999999999995,0.63,2.2599999999999998,null,0.79,1.33]
[null,null,null,null,null,null,null,null,null,null,null,null,null,null,null,null,"2009-08-01",0.52,0.36,1.88,null,0.61,0.93]
[null,null,null,null,null,null,null,null,null,null,null,null,null,null,null,null,"2009-09-01",0.65,0.19,1.55,null,0.31,0.54]
[null,null,null,null,null,null,null,null,null,null,null,null,null,null,null,null,"2009-10-01",0.39,-0.21,1.1200000000000001,null,0.38,0.46]
[null,null,null,null,null,null,null,null,null,null,null,null,null,null,null,null,"2009-11-01",0.22,-0.62,0.6,null,-0.03,0.02]
[null,null,null,null,null,null,null,null,null,null,null,null,null,null,null,null,"2009-12-01",0.06,-0.85,0.13,null,0.14000000000000001,7.0000000000000007E-2]
[null,null,null,null,null,null,null,null,null,null,null,null,null,null,null,null,"2010-01-01",0.11,-0.94,-0.24,null,-0.81,-0.85]
[null,null,null,null,null,null,null,null,null,null,null,null,null,null,null,null,"2010-02-01",0.17,-0.61,-0.14000000000000001,null,-1.33,-1.3836002556610663]
[null,null,null,null,null,null,null,null,null,null,null,null,null,null,null,null,"2010-03-01",0.28999999999999998,-0.56999999999999995,-0.35,null,-1.54,-1.65]
[null,null,null,null,null,null,null,null,null,null,null,null,null,null,null,null,"2010-04-01",0.18,-0.69,-0.85,null,-1.6,-1.73]
[null,null,null,null,null,null,null,null,null,null,null,null,null,null,null,null,"2010-05-01",0.31,-0.81,-1.06,null,-1.53,-1.74]
[null,null,null,null,null,null,null,null,null,null,null,null,null,null,null,null,"2010-06-01",-0.04,-1.0900000000000001,-1.36,null,-1.57,-1.83]
[null,null,null,null,null,null,null,null,null,null,null,null,null,null,null,null,"2010-07-01",-0.31,-1.44,-1.62,null,-1.94,-2.2000000000000002]
[null,null,null,null,null,null,null,null,null,null,null,null,null,null,null,null,"2010-08-01",-0.62,-1.53,-1.69,null,-1.94,-2.0299999999999998]
[null,null,null,null,null,null,null,null,null,null,null,null,null,null,null,null,"2010-09-01",-0.85,-1.68,-1.84,null,-2.0499999999999998,-2.0099999999999998]
[null,null,null,null,null,null,null,null,null,null,null,null,null,null,null,null,"2010-10-01",-1.01,-1.64,-1.8,null,-2,-2.29]
[null,null,null,null,null,null,null,null,null,null,null,null,null,null,null,null,"2010-11-01",-0.96,-1.59,-1.73,null,-1.1599999999999999,{"$f":"-1.21","v":-1.21}]
[null,null,null,null,null,null,null,null,null,null,null,null,null,null,null,null,"2010-12-01",-0.91,-1.6,-1.67,null,-0.14000000000000001,-0.10974829730530056]
[null,null,null,null,null,null,null,null,null,null,null,null,null,null,null,null,"2011-01-01",-0.94,-1.28,-1.94,null,1.1499999999999999,1.2370579447230818]
[null,null,null,null,null,null,null,null,null,null,null,null,null,null,null,null,"2011-02-01",-1.03,-1.27,-1.36,null,1.7,1.9049677531811047]
[null,null,null,null,null,null,null,null,null,null,null,null,null,null,null,null,"2011-03-01",-0.53,-0.8,-0.97,null,1.62,1.826003532050976]
[null,null,null,null,null,null,null,null,null,null,null,null,null,null,null,null,"2011-04-01",0.04,-0.14000000000000001,-0.09,null,2.0299999999999998,2.2956336102639603]
[null,null,null,null,null,null,null,null,null,null,null,null,null,null,null,null,"2011-05-01",0.61,0.86,0.86,null,3.28,3.479224742690358]
[null,null,null,null,null,null,null,null,null,null,null,null,null,null,null,null,"2011-06-01",1.45,2.35,1.46,null,3.9,4.0903514376996801]
[null,null,null,null,null,null,null,null,null,null,null,null,null,null,null,null,"2011-07-01",1.84,3.07,1.85,null,4.2175000000000002,4.4175000000000004]
[null,null,null,null,null,null,null,null,null,null,null,null,null,null,null,null,"2011-08-01",1.98,3.34,2.0299999999999998,null,4.0831249999999999,4.2831250000000001]
[null,null,null,null,null,null,null,null,null,null,null,null,null,null,null,null,"2011-09-01",2.13,3.81,2.4900000000000002,null,6.02,6.3104190283400809]
[null,null,null,null,null,null,null,null,null,null,null,null,null,null,null,null,"2011-10-01",2.34,4.1900000000000004,2.52,null,6.21,7.0628698919680604]
[null,null,null,null,null,null,null,null,null,null,null,null,null,null,null,null,"2011-11-01",2.57,4.57,2.72,null,6.39,7.4825940178415262]
[null,null,null,null,null,null,null,null,null,null,null,null,null,null,null,null,"2011-12-01",2.65,4.75,3.04,null,6.76,7.9029149291075909]
[null,null,null,null,null,null,null,null,null,null,null,null,null,null,null,null,"2012-01-01",2.7,4.88,3.21,null,6.31,7.9275543140906271]
[null,null,null,null,null,null,null,null,null,null,null,null,null,null,null,null,"2012-02-01",2.74,4.8099999999999996,3.24,null,5.71,6.9095183544303795]
[null,null,null,null,null,null,null,null,null,null,null,null,null,null,null,null,"2012-03-01",2.36,4.74,3.41,null,5.69,7.0644858919177427]
[null,null,null,null,null,null,null,null,null,null,null,null,null,null,null,null,"2012-04-01",1.77,4.1500000000000004,3.18,null,5.59,6.8255699332399251]
[null,null,null,null,null,null,null,null,null,null,null,null,null,null,null,null,"2012-05-01",1.53,3.67,2.88,null,5.6,6.8266279164961121]
[null,null,null,null,null,null,null,null,null,null,null,null,null,null,null,null,"2012-06-01",1.1100000000000001,2.69,2.72,null,3.79,4.483791434075977]
[null,null,null,null,null,null,null,null,null,null,null,null,null,null,null,null,"2012-07-01",0.84,2.15,2.5299999999999998,null,3.74,4.5787807951609851]
[null,null,null,null,null,null,null,null,null,null,null,null,null,null,null,null,"2012-08-01",0.84,1.94,2.58,null,2.95,3.7801697040764806]
[null,null,null,null,null,null,null,null,null,null,null,null,null,null,null,null,"2012-09-01",0.54,1.4,2.02,null,2.8,3.6653423629682358]
[null,null,null,null,null,null,null,null,null,null,null,null,null,null,null,null,"2012-10-01",0.47,1.1100000000000001,2.04,null,2.63,3.3606651663997926]
[null,null,null,null,null,null,null,null,null,null,null,null,null,null,null,null,"2012-11-01",0.23,0.56000000000000005,1.89,null,2,2.7715836361882098]
[null,null,null,null,null,null,null,null,null,null,null,null,null,null,null,null,"2012-12-01",0.11,0.02,1.71,null,1.5,2.1981995527668374]
[null,null,null,null,null,null,null,null,null,null,null,null,null,null,null,null,"2013-01-01",0.1,-0.19,1.79,null,1.5,2.1981995527668374]
[null,null,null,null,null,null,null,null,null,null,null,null,null,null,null,null,"2013-02-01",-0.11,-0.53,1.56,null,1.53,2.281079789775442]
[null,null,null,null,null,null,null,null,null,null,null,null,null,null,null,null,"2013-03-01",-0.11,-0.5,1.58,null,1.78,2.4819825419102113]
[null,null,null,null,null,null,null,null,null,null,null,null,null,null,null,null,"2013-04-01",-0.42,-0.54,1.45,null,1.99,2.8006904385021572]
[null,null,null,null,null,null,null,null,null,null,null,null,null,null,null,null,"2013-05-01",-0.53,-0.62,1.1000000000000001,null,2.33,3.0504787032654992]
[null,null,null,null,null,null,null,null,null,null,null,null,null,null,null,null,"2013-06-01",-0.56999999999999995,-0.61,1.35,null,2.29,3.0949206349206353]
[null,null,null,null,null,null,null,null,null,null,null,null,null,null,null,null,"2013-07-01",-0.72,-0.6,1.51,null,2.37,3.4430640297202801]
[null,null,null,null,null,null,null,null,null,null,null,null,null,null,null,null,"2013-08-01",-0.77,-0.6,1.58,null,2.6,3.281106236146341]
[null,null,null,null,null,null,null,null,null,null,null,null,null,null,null,null,"2013-09-01",-0.88,-0.63,1.8,null,2.34,3.2462526507119049]
[null,null,null,null,null,null,null,null,null,null,null,null,null,null,null,null,"2013-10-01",-1.04,-0.61,1.85,null,2.59,3.4240572835175342]
[null,null,null,null,null,null,null,null,null,null,null,null,null,null,null,null,"2013-11-01",-1.08,-0.41,1.92,null,2.19,3.1084033232808457]
[null,null,null,null,null,null,null,null,null,null,null,null,null,null,null,null,"2013-12-01",-1.1299999999999999,-0.06,2,null,0.72,1.4669486618829108]
[null,null,null,null,null,null,null,null,null,null,null,null,null,null,null,null,"2014-01-01",-1.18,0.08,1.69,null,-0.3,0.39115002325355025]
[null,null,null,null,null,null,null,null,null,null,null,null,null,null,null,null,"2014-02-01",-1.28,0.12,1.44,-1.99,-0.87,2.3589925505498009E-4]
[null,null,null,null,null,null,null,null,null,null,null,null,null,null,null,null,"2014-03-01",-1.31,0.21,1.48,-2.0699999999999998,-2.2000000000000002,-1.8706462959597148]
[null,null,null,null,null,null,null,null,null,null,null,null,null,null,null,null,"2014-04-01",-1.31,0.1,1.44,-2,-3.51,-3.2698088321971506]
[null,null,null,null,null,null,null,null,null,null,null,null,null,null,null,null,"2014-05-01",-1.91,-0.3,1.1200000000000001,-2.71,-4.1500000000000004,-3.7302807453416147]
[null,null,null,null,null,null,null,null,null,null,null,null,null,null,null,null,"2014-06-01",-1.91,-0.13,0.72,-2.75,-4.68,-4.6844364933424911]
[null,null,null,null,null,null,null,null,null,null,null,null,null,null,null,null,"2014-07-01",-2.1,0,0.69,-3.09,-5.38,-5.4408806448137739]
[null,null,null,null,null,null,null,null,null,null,null,null,null,null,null,null,"2014-08-01",-2.15,0.02,0.55000000000000004,-3.18,-5.58,-5.6927075417573256]
[null,null,null,null,null,null,null,null,null,null,null,null,null,null,null,null,"2014-09-01",-2.0099999999999998,0.2,0.68,-3.06,-5.6,-6.0852875870103684]
[null,null,null,null,null,null,null,null,null,null,null,null,null,null,null,null,"2014-10-01",-2.0699999999999998,0.06,0.48,-3.1,-6.57,-6.9777895865380142]
[null,null,null,null,null,null,null,null,null,null,null,null,null,null,null,null,"2014-11-01",-2.02,-0.02,0.35,-3.1,-6.42,-6.901895736500256]
[null,null,null,null,null,null,null,null,null,null,null,null,null,null,null,null,"2014-12-01",-1.91,0.06,0.28000000000000003,{"$f":"'[1]Type marques'!L19","v":-2.8},-5.68,-6.087955186913196]
[null,null,null,null,null,null,null,null,null,null,null,null,null,null,null,null,"2015-01-01",-2.08,0,0.37,{"$f":"'Type marques'!H19","v":-3.06},-5.19,-5.535696998974915]
[null,null,null,null,null,null,null,null,null,null,null,null,null,null,null,null,"*Les chiffres de décembre sont estimés par interpolation linéaire"]

{"sheet":"Circuits","index":3,"n_rows":56,"n_cols":19,"rows_kept":56,"cut":false,"hidden":false,"merged":[[1,1,2,2]]}
[]
[null,"Retour au sommaire"]
[]
[null,null,null,null,null,null,null,null,null,null,null,null,null,null,"Hypers","Supers","H.D.","GMS"]
[null,null,null,null,null,null,null,null,null,null,null,null,null,"Exhaustif",{"$f":"+O9","v":-2.35},{"$f":"+O10","v":-1.41},{"$f":"+O11","v":-5.19},{"$f":"+O12","v":-2.08}]
[null,null,null,null,null,null,null,null,null,null,null,null,null,"Marques fabricants",-3.25,-2.54,-4.3499999999999996,-3.06]
[]
[null,null,null,null,null,null,null,null,null,null,null,null,null,null,"Exha","Lead","Maj","Mdd","PPx"]
[null,null,null,null,null,null,null,null,null,null,null,null,null,"HM",-2.35,-4.5999999999999996,-8.1,-0.24,0.52]
[null,null,null,null,null,null,null,null,null,null,null,null,null,"SM",-1.41,-3.29,-6.18,0.68,0.23]
[null,null,null,null,null,null,null,null,null,null,null,null,null,"HD",-5.19,-6.47,-7.84,-5.98,-2.27]
[null,null,null,null,null,null,null,null,null,null,null,null,null,"TTMAG",-2.08,-4.18,-7.29,0,0.37]
[]
[]
[]
[]
[]
[]
[]
[]
[]
[]
[]
[]
[]
[]
[]
[]
[]
[]
[]
[]
[]
[]
[]
[]
[]
[]
[]
[]
[]
[]
[]
[]
[]
[]
[]
[]
[]
[]
[]
[]
[]
[]
[]
[null,"*Plus Grandes Marques : les références des marques majeures par catégories de produits, définies en GMS"]

{"sheet":"HistoriqCircuits","index":4,"n_rows":126,"n_cols":21,"rows_kept":126,"cut":false,"hidden":false,"merged":[[1,1,2,2]]}
[null,null,null,null,null,null,null,null,null,null,null,null,null,null,null,"Evolution de l'INFLATION ANNUELLE par TYPES de CIRCUITS"]
[null,"Retour au sommaire",null,null,null,null,null,null,null,null,null,null,null,null,null,"pour les Produits PGC+PFLS en Exhaustif"]
[]
[null,null,null,null,null,null,null,null,null,null,null,null,null,null,null,"TOTAL GENERAL                            ",null,"Hypers","Supers","Hard-Discount","GMS"]
[null,null,null,null,null,null,null,null,null,null,null,null,null,null,null,null,"Janvier 2005",-1.2E-2,-6.7999999999999996E-3,-1.6299999999999999E-2,-1.01E-2]
[null,null,null,null,null,null,null,null,null,null,null,null,null,null,null,null,"Février 2005",-1.29E-2,-0.01,-1.34E-2,-1.17E-2]
[null,null,null,null,null,null,null,null,null,null,null,null,null,null,null,null,"Mars 2005",-1.4E-2,-1.2500000000000001E-2,-2.12E-2,-1.3299999999999999E-2]
[null,null,null,null,null,null,null,null,null,null,null,null,null,null,null,null,"Avril 2005",-1.46E-2,-1.2E-2,-1.6E-2,-1.34E-2]
[null,null,null,null,null,null,null,null,null,null,null,null,null,null,null,null,"Mai 2005",-1.5800000000000002E-2,-1.34E-2,-1.5800000000000002E-2,-1.47E-2]
[null,null,null,null,null,null,null,null,null,null,null,null,null,null,null,null,"Juin 2005",-1.6500000000000001E-2,-1.3599999999999999E-2,-1.5299999999999999E-2,-1.52E-2]
[null,null,null,null,null,null,null,null,null,null,null,null,null,null,null,null,"Juillet 2005*",-1.21E-2,-1.1766666666666667E-2,-1.5266666666666666E-2,-1.1933333333333332E-2]
[null,null,null,null,null,null,null,null,null,null,null,null,null,null,null,null,"Août 2005*",-7.7000000000000011E-3,-9.9333333333333339E-3,-1.5233333333333333E-2,-8.666666666666668E-3]
[null,null,null,null,null,null,null,null,null,null,null,null,null,null,null,null,"Sept. 2005",-3.3E-3,-8.0999999999999996E-3,-1.52E-2,-5.4000000000000003E-3]
[null,null,null,null,null,null,null,null,null,null,null,null,null,null,null,null,"Oct. 2005",-1E-3,-2.0999999999999999E-3,-1.41E-2,-1.5E-3]
[null,null,null,null,null,null,null,null,null,null,null,null,null,null,null,null,"Nov. 2005",-4.0000000000000002E-4,-4.1999999999999997E-3,-1.12E-2,-2.0999999999999999E-3]
[null,null,null,null,null,null,null,null,null,null,null,null,null,null,null,null,"Déc.2005*",2.0999999999999999E-3,-2.6999999999999997E-3,-9.2999999999999992E-3,-4.9999999999999914E-5]
[null,null,null,null,null,null,null,null,null,null,null,null,null,null,null,null,"Janvier 2006",4.5999999999999999E-3,-1.1999999999999999E-3,-7.4000000000000003E-3,2E-3]
[null,null,null,null,null,null,null,null,null,null,null,null,null,null,null,null,"Février 2006",4.7999999999999996E-3,-6.9999999999999999E-4,-4.0000000000000001E-3,2.3999999999999998E-3]
[null,null,null,null,null,null,null,null,null,null,null,null,null,null,null,null,"Mars 2006",6.1000000000000004E-3,1.8E-3,-5.0000000000000001E-4,4.1000000000000003E-3]
[null,null,null,null,null,null,null,null,null,null,null,null,null,null,null,null,"Avril 2006",5.4000000000000003E-3,2.2000000000000001E-3,-1.6000000000000001E-3,3.8999999999999998E-3]
[null,null,null,null,null,null,null,null,null,null,null,null,null,null,null,null,"Mai 2006",5.4000000000000003E-3,2.3999999999999998E-3,-3.2000000000000002E-3,4.1000000000000003E-3]
[null,null,null,null,null,null,null,null,null,null,null,null,null,null,null,null,"Juin 2006",3.2000000000000002E-3,5.0000000000000001E-4,-6.7999999999999996E-3,2E-3]
[null,null,null,null,null,null,null,null,null,null,null,null,null,null,null,null,"Juillet 2006",2.5500000000000002E-3,5.3249999999999999E-3,-3.8999999999999998E-3,3.375E-3]
[null,null,null,null,null,null,null,null,null,null,null,null,null,null,null,null,"Août 2006",8.0000000000000004E-4,9.1999999999999998E-3,-2.8E-3,3.7000000000000002E-3]
[null,null,null,null,null,null,null,null,null,null,null,null,null,null,null,null,"Sept. 2006",0,2.2000000000000001E-3,-3.0999999999999999E-3,8.9999999999999998E-4]
[null,null,null,null,null,null,null,null,null,null,null,null,null,null,null,null,"Oct. 2006",-6.9999999999999999E-4,4.8000000000000001E-4,5.0000000000000001E-4,1.4999999999999999E-4]
[null,null,null,null,null,null,null,null,null,null,null,null,null,null,null,null,"Nov.2006",4.0000000000000002E-4,1.1999999999999999E-3,5.1999999999999995E-4,6.9999999999999999E-4]
[null,null,null,null,null,null,null,null,null,null,null,null,null,null,null,null,"Déc.2006*",-1.6999999999999999E-3,1.4499999999999999E-3,1.6600000000000002E-3,-4.5000000000000004E-4]
[null,null,null,null,null,null,null,null,null,null,null,null,null,null,null,null,"Jan.2007",-3.8E-3,1.7000000000000001E-3,2.8000000000000004E-3,-1.6000000000000001E-3]
[null,null,null,null,null,null,null,null,null,null,null,null,null,null,null,null,"Fév. 2007",-7.7000000000000002E-3,1.1999999999999999E-3,4.3E-3,-4.4000000000000003E-3]
[null,null,null,null,null,null,null,null,null,null,null,null,null,null,null,null,"2007-03-01",-6.1999999999999998E-3,2.5999999999999999E-3,5.0000000000000001E-3,-1E-3]
[null,null,null,null,null,null,null,null,null,null,null,null,null,null,null,null,"2007-04-01",-8.8999999999999999E-3,-3.5999999999999999E-3,-1.5E-3,-7.4000000000000003E-3]
[null,null,null,null,null,null,null,null,null,null,null,null,null,null,null,null,"2007-05-01",-1.0700000000000001E-2,1.5E-3,-1.2999999999999999E-3,-7.4000000000000003E-3]
[null,null,null,null,null,null,null,null,null,null,null,null,null,null,null,null,"2007-06-01",-7.6E-3,2.2000000000000001E-3,4.7999999999999996E-3,-4.8999999999999998E-3]
[null,null,null,null,null,null,null,null,null,null,null,null,null,null,null,null,"2007-07-01",-7.3000000000000001E-3,4.1999999999999997E-3,6.7999999999999996E-3,-3.7000000000000002E-3]
[null,null,null,null,null,null,null,null,null,null,null,null,null,null,null,null,"2007-08-01",-5.3E-3,7.4999999999999997E-3,1.29E-2,-7.000000000000001E-4]
[null,null,null,null,null,null,null,null,null,null,null,null,null,null,null,null,"2007-09-01",-3.2000000000000002E-3,4.1999999999999997E-3,1.24E-2,-8.9999999999999998E-4]
[null,null,null,null,null,null,null,null,null,null,null,null,null,null,null,null,"2007-10-01",-1E-3,4.4000000000000003E-3,1.3000000000000001E-2,7.000000000000001E-4]
[null,null,null,null,null,null,null,null,null,null,null,null,null,null,null,null,"2007-11-01",3.3E-3,6.7000000000000002E-3,3.4999999999999996E-3,4.3E-3]
[null,null,null,null,null,null,null,null,null,null,null,null,null,null,null,null,"2007-12-01",1.3100000000000001E-2,1.6399999999999998E-2,2.0499999999999997E-2,1.4199999999999999E-2]
[null,null,null,null,null,null,null,null,null,null,null,null,null,null,null,null,"2008-01-01",2.41E-2,2.3300000000000001E-2,3.7599999999999995E-2,2.3900000000000001E-2]
[null,null,null,null,null,null,null,null,null,null,null,null,null,null,null,null,"2008-02-01",3.32E-2,3.2400000000000005E-2,4.0747628825657502E-2,3.3000000000000002E-2]
[null,null,null,null,null,null,null,null,null,null,null,null,null,null,null,null,"2008-03-01",3.44E-2,3.8800000000000001E-2,3.8199999999999998E-2,3.5499999999999997E-2]
[null,null,null,null,null,null,null,null,null,null,null,null,null,null,null,null,"2008-04-01",3.5299999999999998E-2,4.1299999999999996E-2,3.7699999999999997E-2,3.6699999999999997E-2]
[null,null,null,null,null,null,null,null,null,null,null,null,null,null,null,null,"2008-05-01",3.9E-2,3.9199999999999999E-2,3.7900000000000003E-2,3.9100000000000003E-2]
[null,null,null,null,null,null,null,null,null,null,null,null,null,null,null,null,"2008-06-01",3.85E-2,3.8800000000000001E-2,3.7999999999999999E-2,3.8599999999999995E-2]
[null,null,null,null,null,null,null,null,null,null,null,null,null,null,null,null,"2008-07-01",4.0099999999999997E-2,4.1399999999999999E-2,4.9599999999999998E-2,4.0399999999999998E-2]
[null,null,null,null,null,null,null,null,null,null,null,null,null,null,null,null,"2008-08-01",3.9300000000000002E-2,4.3400000000000001E-2,4.3099999999999999E-2,4.0300000000000002E-2]
[null,null,null,null,null,null,null,null,null,null,null,null,null,null,null,null,"2008-09-01",3.9399999999999998E-2,4.6300000000000001E-2,3.4799999999999998E-2,4.1200000000000001E-2]
[null,null,null,null,null,null,null,null,null,null,null,null,null,null,null,null,"2008-10-01",3.8599999999999995E-2,4.5700000000000005E-2,4.0500000000000001E-2,4.0399999999999998E-2]
[null,null,null,null,null,null,null,null,null,null,null,null,null,null,null,null,"2008-11-01",3.7699999999999997E-2,4.5999999999999999E-2,3.39E-2,3.9800000000000002E-2]
[null,null,null,null,null,null,null,null,null,null,null,null,null,null,null,null,"2008-12-01",2.8199999999999999E-2,3.8599999999999995E-2,2.2099999999999998E-2,3.0600000000000002E-2]
[null,null,null,null,null,null,null,null,null,null,null,null,null,null,null,null,"2009-01-01",1.8000000000000002E-2,2.69E-2,1.7100000000000001E-2,2.0099999999999996E-2]
[null,null,null,null,null,null,null,null,null,null,null,null,null,null,null,null,"2009-02-01",1.3999999999999999E-2,1.95E-2,1.2800000000000001E-2,1.54E-2]
[null,null,null,null,null,null,null,null,null,null,null,null,null,null,null,null,"2009-03-01",1.24E-2,1.4499999999999999E-2,8.3999999999999995E-3,1.29E-2]
[null,null,null,null,null,null,null,null,null,null,null,null,null,null,null,null,"2009-04-01",1.01E-2,1.1000000000000001E-2,1.5100000000000001E-2,1.04E-2]
[null,null,null,null,null,null,null,null,null,null,null,null,null,null,null,null,"2009-05-01",8.8999999999999999E-3,9.7999999999999997E-3,1.4200000000000001E-2,9.1000000000000004E-3]
[null,null,null,null,null,null,null,null,null,null,null,null,null,null,null,null,"2009-06-01",7.9000000000000008E-3,8.6999999999999994E-3,7.6E-3,8.1000000000000013E-3]
[null,null,null,null,null,null,null,null,null,null,null,null,null,null,null,null,"2009-07-01",4.7999999999999996E-3,8.6999999999999994E-3,7.9000000000000008E-3,5.7000000000000002E-3]
[null,null,null,null,null,null,null,null,null,null,null,null,null,null,null,null,"2009-08-01",5.6999999999999993E-3,3.9000000000000003E-3,6.0999999999999995E-3,5.6999999999999993E-3]
[null,null,null,null,null,null,null,null,null,null,null,null,null,null,null,null,"2009-09-01",7.4000000000000003E-3,3.8E-3,3.0999999999999999E-3,6.5000000000000006E-3]
[null,null,null,null,null,null,null,null,null,null,null,null,null,null,null,null,"2009-10-01",5.1000000000000004E-3,2.0000000000000001E-4,3.8E-3,3.9000000000000003E-3]
[null,null,null,null,null,null,null,null,null,null,null,null,null,null,null,null,"2009-11-01",3.9000000000000003E-3,-2.7000000000000001E-3,-2.9999999999999997E-4,2.2000000000000001E-3]
[null,null,null,null,null,null,null,null,null,null,null,null,null,null,null,null,"2009-12-01",2.5000000000000001E-3,-5.6999999999999993E-3,1.4000000000000002E-3,5.9999999999999995E-4]
[null,null,null,null,null,null,null,null,null,null,null,null,null,null,null,null,"2010-01-01",2.5000000000000001E-3,-3.0999999999999999E-3,-8.1000000000000013E-3,1.1000000000000001E-3]
[null,null,null,null,null,null,null,null,null,null,null,null,null,null,null,null,"2010-02-01",2.8999999999999998E-3,-1.8E-3,-1.3299999999999999E-2,1.6999999999999999E-3]
[null,null,null,null,null,null,null,null,null,null,null,null,null,null,null,null,"2010-03-01",3.4999999999999996E-3,1.1999999999999999E-3,-1.54E-2,2.8999999999999998E-3]
[null,null,null,null,null,null,null,null,null,null,null,null,null,null,null,null,"2010-04-01",3.3E-3,3.3E-3,-1.6E-2,1.8E-3]
[null,null,null,null,null,null,null,null,null,null,null,null,null,null,null,null,"2010-05-01",2.5999999999999999E-3,4.8999999999999998E-3,-1.5300000000000001E-2,3.0999999999999999E-3]
[null,null,null,null,null,null,null,null,null,null,null,null,null,null,null,null,"2010-06-01",-1.4000000000000002E-3,2.5000000000000001E-3,-1.5700000000000002E-2,-4.0000000000000002E-4]
[null,null,null,null,null,null,null,null,null,null,null,null,null,null,null,null,"2010-07-01",-3.0999999999999999E-3,-3.0000000000000001E-3,-1.9400000000000001E-2,-3.0999999999999999E-3]
[null,null,null,null,null,null,null,null,null,null,null,null,null,null,null,null,"2010-08-01",-6.5000000000000006E-3,-5.0000000000000001E-3,-1.9400000000000001E-2,-6.1999999999999998E-3]
[null,null,null,null,null,null,null,null,null,null,null,null,null,null,null,null,"2010-09-01",-8.6999999999999994E-3,-7.9000000000000008E-3,-2.0499999999999997E-2,-8.5000000000000006E-3]
[null,null,null,null,null,null,null,null,null,null,null,null,null,null,null,null,"2010-10-01",-1.0500000000000001E-2,-8.6999999999999994E-3,-0.02,-1.01E-2]
[null,null,null,null,null,null,null,null,null,null,null,null,null,null,null,null,"2010-11-01",-9.8999999999999991E-3,-8.6E-3,-1.1599999999999999E-2,-9.5999999999999992E-3]
[null,null,null,null,null,null,null,null,null,null,null,null,null,null,null,null,"2010-12-01",-9.7000000000000003E-3,-7.3000000000000001E-3,-1.4000000000000002E-3,-9.1000000000000004E-3]
[null,null,null,null,null,null,null,null,null,null,null,null,null,null,null,null,"2011-01-01",-9.300000000000001E-3,-9.7999999999999997E-3,1.15E-2,-9.3999999999999986E-3]
[null,null,null,null,null,null,null,null,null,null,null,null,null,null,null,null,"2011-02-01",-1.0800000000000001E-2,-8.8000000000000005E-3,1.7000000000000001E-2,-1.03E-2]
[null,null,null,null,null,null,null,null,null,null,null,null,null,null,null,null,"2011-03-01",-6.0999999999999995E-3,-2.8000000000000004E-3,1.6200000000000003E-2,-5.3E-3]
[null,null,null,null,null,null,null,null,null,null,null,null,null,null,null,null,"2011-04-01",-1E-4,2E-3,2.0299999999999999E-2,4.0000000000000002E-4]
[null,null,null,null,null,null,null,null,null,null,null,null,null,null,null,null,"2011-05-01",5.6000000000000008E-3,7.6E-3,3.2899999999999999E-2,6.0999999999999995E-3]
[null,null,null,null,null,null,null,null,null,null,null,null,null,null,null,null,"2011-06-01",1.37E-2,1.66E-2,3.9100000000000003E-2,1.4499999999999999E-2]
[null,null,null,null,null,null,null,null,null,null,null,null,null,null,null,null,"2011-07-01",1.6799999999999999E-2,2.3399999999999997E-2,4.2175000000000004E-2,1.84E-2]
[null,null,null,null,null,null,null,null,null,null,null,null,null,null,null,null,"2011-08-01",1.8200000000000001E-2,2.5000000000000001E-2,4.0831249999999999E-2,1.9799999999999998E-2]
[null,null,null,null,null,null,null,null,null,null,null,null,null,null,null,null,"2011-09-01",1.9299999999999998E-2,2.76E-2,6.0199999999999997E-2,2.1299999999999999E-2]
[null,null,null,null,null,null,null,null,null,null,null,null,null,null,null,null,"2011-10-01",2.1700000000000001E-2,2.8399999999999998E-2,6.2100000000000002E-2,2.3399999999999997E-2]
[null,null,null,null,null,null,null,null,null,null,null,null,null,null,null,null,"2011-11-01",2.3799999999999998E-2,3.1300000000000001E-2,6.3899999999999998E-2,2.5699999999999997E-2]
[null,null,null,null,null,null,null,null,null,null,null,null,null,null,null,null,"2011-12-01",2.4500000000000001E-2,3.2500000000000001E-2,6.7599999999999993E-2,2.6499999999999999E-2]
[null,null,null,null,null,null,null,null,null,null,null,null,null,null,null,null,"2012-01-01",2.53E-2,3.32E-2,6.3099999999999989E-2,2.7000000000000003E-2]
[null,null,null,null,null,null,null,null,null,null,null,null,null,null,null,null,"2012-02-01",2.58E-2,3.27E-2,5.7099999999999998E-2,2.7400000000000001E-2]
[null,null,null,null,null,null,null,null,null,null,null,null,null,null,null,null,"2012-03-01",2.18E-2,2.9399999999999999E-2,5.6799999999999996E-2,2.3599999999999999E-2]
[null,null,null,null,null,null,null,null,null,null,null,null,null,null,null,null,"2012-04-01",1.5900000000000001E-2,2.35E-2,5.5999999999999994E-2,1.77E-2]
[null,null,null,null,null,null,null,null,null,null,null,null,null,null,null,null,"2012-05-01",1.3300000000000001E-2,2.1499999999999998E-2,5.1900000000000002E-2,1.5300000000000001E-2]
[null,null,null,null,null,null,null,null,null,null,null,null,null,null,null,null,"2012-06-01",9.7999999999999997E-3,1.5300000000000001E-2,3.7900000000000003E-2,1.11E-2]
[null,null,null,null,null,null,null,null,null,null,null,null,null,null,null,null,"2012-07-01",6.3E-3,1.1599999999999999E-2,3.7200000000000004E-2,8.3999999999999995E-3]
[null,null,null,null,null,null,null,null,null,null,null,null,null,null,null,null,"2012-08-01",7.0999999999999995E-3,1.03E-2,2.9500000000000002E-2,8.3999999999999995E-3]
[null,null,null,null,null,null,null,null,null,null,null,null,null,null,null,null,"2012-09-01",4.6999999999999993E-3,6.3E-3,2.7900000000000001E-2,5.4000000000000003E-3]
[null,null,null,null,null,null,null,null,null,null,null,null,null,null,null,null,"2012-10-01",3.4999999999999996E-3,6.5000000000000006E-3,2.63E-2,4.6999999999999993E-3]
[null,null,null,null,null,null,null,null,null,null,null,null,null,null,null,null,"2012-11-01",1.1000000000000001E-3,4.1999999999999997E-3,0.02,2.3E-3]
[null,null,null,null,null,null,null,null,null,null,null,null,null,null,null,null,"2012-12-01",-2.0000000000000001E-4,3.4000000000000002E-3,1.49E-2,1.1000000000000001E-3]
[null,null,null,null,null,null,null,null,null,null,null,null,null,null,null,null,"2013-01-01",-5.9999999999999995E-4,3.4000000000000002E-3,1.9099999999999999E-2,1E-3]
[null,null,null,null,null,null,null,null,null,null,null,null,null,null,null,null,"2013-02-01",-2.5000000000000001E-3,1.1999999999999999E-3,1.5100000000000001E-2,-1.1000000000000001E-3]
[null,null,null,null,null,null,null,null,null,null,null,null,null,null,null,null,"2013-03-01",-2.8999999999999998E-3,1.9E-3,1.7500000000000002E-2,-1.1000000000000001E-3]
[null,null,null,null,null,null,null,null,null,null,null,null,null,null,null,null,"2013-04-01",-6.6E-3,0,1.9699999999999999E-2,-4.1999999999999997E-3]
[null,null,null,null,null,null,null,null,null,null,null,null,null,null,null,null,"2013-05-01",-7.9000000000000008E-3,-7.000000000000001E-4,2.3300000000000001E-2,-5.3E-3]
[null,null,null,null,null,null,null,null,null,null,null,null,null,null,null,null,"2013-06-01",-9.1999999999999998E-3,4.0000000000000002E-4,2.2700000000000001E-2,-5.6999999999999993E-3]
[null,null,null,null,null,null,null,null,null,null,null,null,null,null,null,null,"2013-07-01",-1.0500000000000001E-2,-1.7000000000000001E-3,2.3599999999999999E-2,-7.1999999999999998E-3]
[null,null,null,null,null,null,null,null,null,null,null,null,null,null,null,null,"2013-08-01",-1.1299999999999999E-2,-1.8E-3,2.5899999999999999E-2,-7.7000000000000002E-3]
[null,null,null,null,null,null,null,null,null,null,null,null,null,null,null,null,"2013-09-01",-1.21E-2,-2.8000000000000004E-3,2.3399999999999997E-2,-8.8000000000000005E-3]
[null,null,null,null,null,null,null,null,null,null,null,null,null,null,null,null,"2013-10-01",-1.3600000000000001E-2,-5.0000000000000001E-3,2.5899999999999999E-2,-1.04E-2]
[null,null,null,null,null,null,null,null,null,null,null,null,null,null,null,null,"2013-11-01",-1.3500000000000002E-2,-6.0999999999999995E-3,2.1899999999999999E-2,-1.0800000000000001E-2]
[null,null,null,null,null,null,null,null,null,null,null,null,null,null,null,null,"2013-12-01",-1.37E-2,-6.6E-3,7.1999999999999998E-3,-1.1299999999999999E-2]
[null,null,null,null,null,null,null,null,null,null,null,null,null,null,null,null,"2014-01-01",-1.37E-2,-8.3000000000000001E-3,-3.0000000000000001E-3,-1.18E-2]
[null,null,null,null,null,null,null,null,null,null,null,null,null,null,null,null,"2014-02-01",-1.43E-2,-9.3999999999999986E-3,-8.6999999999999994E-3,-1.2800000000000001E-2]
[null,null,null,null,null,null,null,null,null,null,null,null,null,null,null,null,"2014-03-01",-1.47E-2,-9.5999999999999992E-3,-2.2000000000000002E-2,-1.3100000000000001E-2]
[null,null,null,null,null,null,null,null,null,null,null,null,null,null,null,null,"2014-04-01",-1.4499999999999999E-2,-9.5999999999999992E-3,-3.5099999999999999E-2,-1.3100000000000001E-2]
[null,null,null,null,null,null,null,null,null,null,null,null,null,null,null,null,"2014-05-01",-2.0400000000000001E-2,-1.6E-2,-4.1500000000000002E-2,-1.9099999999999999E-2]
[null,null,null,null,null,null,null,null,null,null,null,null,null,null,null,null,"2014-06-01",-2.0299999999999999E-2,-1.6399999999999998E-2,-4.6799999999999994E-2,-1.9099999999999999E-2]
[null,null,null,null,null,null,null,null,null,null,null,null,null,null,null,null,"2014-07-01",-2.2599999999999999E-2,-1.72E-2,-5.3800000000000001E-2,-2.1000000000000001E-2]
[null,null,null,null,null,null,null,null,null,null,null,null,null,null,null,null,"2014-08-01",-2.2799999999999997E-2,-1.8200000000000001E-2,-5.5800000000000002E-2,-2.1499999999999998E-2]
[null,null,null,null,null,null,null,null,null,null,null,null,null,null,null,null,"2014-09-01",-2.1700000000000001E-2,-1.55E-2,-5.5999999999999994E-2,-2.0099999999999996E-2]
[null,null,null,null,null,null,null,null,null,null,null,null,null,null,null,null,"2014-10-01",-2.2200000000000001E-2,-1.6399999999999998E-2,-6.5700000000000008E-2,-2.07E-2]
[null,null,null,null,null,null,null,null,null,null,null,null,null,null,null,null,"2014-11-01",-2.18E-2,-1.55E-2,-6.4199999999999993E-2,-2.0199999999999999E-2]
[null,null,null,null,null,null,null,null,null,null,null,null,null,null,null,null,"2014-12-01",-2.0799999999999999E-2,-1.4199999999999999E-2,-5.6799999999999996E-2,-1.9099999999999999E-2]
[null,null,null,null,null,null,null,null,null,null,null,null,null,null,null,null,"2015-01-01",-2.35E-2,-1.41E-2,-5.1900000000000002E-2,-2.0799999999999999E-2]
[null,null,null,null,null,null,null,null,null,null,null,null,null,null,null,null,"*Chiffres estimés par interpolation linéaire"]

{"sheet":"Familles Plus","index":5,"n_rows":98,"n_cols":28,"rows_kept":98,"cut":false,"hidden":false,"merged":[[11,1,11,3],[1,1,2,2]]}
[null,null,null,null,null,null,null,null,null,null,null,null,null,null,null,null,null,null,null,null,null,null,"grprd","Fam/ray","Exhaustif","MDD","PPX","mfab"]
[null,"Retour au sommaire",null,null,null,null,null,null,null,null,null,null,null,null,null,null,null,null,null,null,null,null,"FA00018","Fruits secs, pruneaux",4.3899999999999997,6.83,8.86,3.09]
[null,null,null,null,null,null,null,null,null,null,null,null,null,null,null,null,null,null,"EXHAUSTIF","MDD","PPX","MFAB","FA00043","Cidre, cider",1.17,3.69,-0.01,0.11]
[null,null,null,null,null,null,null,null,null,null,null,null,null,null,null,null,null,null,null,null,null,null,"FA00046","Digestif,liqueur,eau de vie",0.85,2.3199999999999998,-0.83,0.2]
[null,null,null,null,null,null,null,null,null,null,null,null,null,null,null,null,null,"Fruits secs, pruneaux",4.3899999999999997,6.83,8.86,3.09,"FA00098","Traitements, engrais plant",0.72,0.84,4.45,0.61]
[null,null,null,null,null,null,null,null,null,null,null,null,null,null,null,null,null,"Cidre, cider",1.17,3.69,-0.01,0.11,"FA00002","Paté,rillet,sciss,foie gras",0.54,2.81,0.81,-0.59]
[null,null,null,null,null,null,null,null,null,null,null,null,null,null,null,null,null,"Digestif,liqueur,eau de vie",0.85,2.3199999999999998,-0.83,0.2,"FA00081","FRUITS MER, POISSON NAT, PANES, GRENOUILLE ESCARGOT",0.51,1.93,-0.12,-0.98]
[null,null,null,null,null,null,null,null,null,null,null,null,null,null,null,null,null,"Traitements, engrais plant",0.72,0.84,4.45,0.61,"FA00080","Plats cuisinés tt prêt surg",0.48,1.56,0.48,-1.1399999999999999]
[null,null,null,null,null,null,null,null,null,null,null,null,null,null,null,null,null,"Paté,rillet,sciss,foie gras",0.54,2.81,0.81,-0.59,"FA00044","Vin (Table et Pays)",0.43,1.83,3.55,-0.61]
[null,null,null,null,null,null,null,null,null,null,null,null,null,null,null,null,null,"Fruits mer, poisson nat, panes, grenouille escargot",0.51,1.93,-0.12,-0.98,"FA00075","Lait",0.21,0.71,3.67,-0.14000000000000001]
[null,null,null,null,null,null,null,null,null,null,null,null,null,null,null,null,null,"Plats cuisinés tt prêt surg",0.48,1.56,0.48,-1.1399999999999999,"FA00083","Viande,volaill,charcut surg",0.16,1.4,0.52,-1.1200000000000001]
[null,null,null,null,null,"EXHAUSTIF",null,"MARQUES FABRICANTS",null,"MDD",null,"PPX",null,null,null,null,null,"Vin (Table et Pays)",0.43,1.83,3.55,-0.61,"FA00078","Fromages",0.12,0.97,1.3,-0.37]
[null,{"$f":"+R5","v":"Fruits secs, pruneaux"},null,null,null,{"$f":"+S5","v":4.3899999999999997},null,{"$f":"+V5","v":3.09},null,{"$f":"+T5","v":6.83},null,{"$f":"+U5","v":8.86},null,null,null,null,null,"Lait",0.21,0.71,3.67,-0.14000000000000001,"FA00005","Légumes secs et deshydratés",0.11,0.52,7.77,-0.22]
[null,"Cidre, cider",null,null,null,1.17,null,{"$f":"+V6","v":0.11},null,3.69,null,-0.01,null,null,null,null,null,"Viande,volaill,charcut surg",0.16,1.4,0.52,-1.1200000000000001,"FA00045","Champagne, mousseux",0.11,1.78,-0.48,-0.46]
[null,"Digestif,liqueur,eau de vie",null,null,null,0.85,null,0.2,null,2.3199999999999998,null,-0.83,null,null,null,null,null,null,null,null,null,null,"FA00048","Apéritifs alcoolisés",0.11,1.63,0.01,-0.35]
[null,"Traitements, engrais plant",null,null,null,0.72,null,0.61,null,0.84,null,4.45,null,null,null,null,null,null,null,null,null,null,"FA00085","Saurisserie",0.05,0.86,2.06,-0.73]
[null,"Paté,rillet,sciss,foie gras",null,null,null,0.54,null,-0.59,null,2.81,null,0.81,null,null,null,null,null,null,null,null,null,null,"FA00049","Apéritifs sans alcool",-0.05,4.46,1.39,-1]
[null,"Fruits mer, poisson nat, panes, grenouille escargot",null,null,null,0.51,null,-0.98,null,1.93,null,-0.12,null,null,null,null,null,null,null,null,null,null,"FA00079","Entrée,pizza,fast food surg",-0.25,1.75,-0.81,-2.12]
[null,"Plats cuisinés tt prêt surg",null,null,null,0.48,null,-1.1399999999999999,null,1.56,null,0.48,null,null,null,null,null,null,null,null,null,null,"FA00092","Supports Informatiques",-0.28000000000000003,2.0099999999999998,-1.21,-0.8]
[null,"Vin (Table et Pays)",null,null,null,0.43,null,-0.61,null,1.83,null,3.55,null,null,null,null,null,null,null,null,null,null,"FA00027","Pate A tartiner",-0.46,0.18,-0.02,-0.77]
[null,"Lait",null,null,null,0.21,null,-0.14000000000000001,null,0.71,null,3.67,null,null,null,null,null,null,null,null,null,null,"FA00063","Essuie tout",-0.47,1.93,-0.83,-2.98]
[null,"Viande,volaill,charcut surg",null,null,null,0.16,null,-1.1200000000000001,null,1.4,null,0.52,null,null,null,null,null,null,null,null,null,null,"FA00039","Sirop,concent,poudre boiss",-0.55000000000000004,4.12,-0.56000000000000005,-3.31]
[null,null,null,null,null,null,null,null,null,null,null,null,null,null,null,null,null,null,null,null,null,null,"FA00047","Whisky, bourbon",-0.7,1.67,0.98,-0.96]
[null,null,null,null,null,null,null,null,null,null,null,null,null,null,null,null,null,null,null,null,null,null,"FA00001","Plats cuisinés",-0.76,0.72,0.97,-1.55]
[null,null,null,null,null,null,null,null,null,null,null,null,null,null,null,null,null,null,null,null,null,null,"FA00320","Changes complets, couches,culottes absorbantes bebes",-0.76,1.06,-0.05,-3.15]
[null,null,null,null,null,null,null,null,null,null,null,null,null,null,null,null,null,null,null,null,null,null,"FA00014","Légumes vinaig, huile, saum",-0.82,0.5,3.67,-1.64]
[null,null,null,null,null,null,null,null,null,null,null,null,null,null,null,null,null,null,null,null,null,null,"FA00095","Ampoules électriques",-0.84,0.43,2.46,-1.82]
[null,null,null,null,null,null,null,null,null,null,null,null,null,null,null,null,null,null,null,null,null,null,"FA00029","Chicorée,chic+caf,cafe solu",-0.85,0.95,-1.45,-1.36]
[null,null,null,null,null,null,null,null,null,null,null,null,null,null,null,null,null,null,null,null,null,null,"FA00011","Vinaigre",-0.86,-0.01,-0.06,-1.52]
[null,null,null,null,null,null,null,null,null,null,null,null,null,null,null,null,null,null,null,null,null,null,"FA00053","Maquillage",-0.97,-0.11,-0.46,-1.06]
[null,null,null,null,null,null,null,null,null,null,null,null,null,null,null,null,null,null,null,null,null,null,"FA00069","Insecticides",-1.04,1.07,8.0500000000000007,-2.1800000000000002]
[null,null,null,null,null,null,null,null,null,null,null,null,null,null,null,null,null,null,null,null,null,null,"FA00077","Oeufs",-1.07,-3.44,-0.27,0.28999999999999998]
[null,null,null,null,null,null,null,null,null,null,null,null,null,null,null,null,null,null,null,null,null,null,"FA00062","Papier hygiénique",-1.1200000000000001,-0.6,-0.22,-2.5499999999999998]
[null,null,null,null,null,null,null,null,null,null,null,null,null,null,null,null,null,null,null,null,null,null,"FA00012","Sel, poivre, épices, herbes",-1.1299999999999999,3.4,6.56,-2.2000000000000002]
[null,null,null,null,null,null,null,null,null,null,null,null,null,null,null,null,null,null,null,null,null,null,"FA00076","Beurre,margarine,creme frai",-1.1299999999999999,0.03,-1.05,-1.64]
[null,null,null,null,null,null,null,null,null,null,null,null,null,null,null,null,null,null,null,null,null,null,"FA00003","Conserves de poissons",-1.1499999999999999,-0.2,0.38,-1.75]
[null,null,null,null,null,null,null,null,null,null,null,null,null,null,null,null,null,null,null,null,null,null,"FA00010","Huile",-1.19,0.47,-3.51,-1.77]
[null,null,null,null,null,null,null,null,null,null,null,null,null,null,null,null,null,null,null,null,null,null,"FA00030","Café torréfié",-1.21,0.59,-0.27,-1.81]
[null,null,null,null,null,null,null,null,null,null,null,null,null,null,null,null,null,null,null,null,null,null,"FA00073","Charcuterie libre service",-1.21,0.17,-0.34,-2.42]
[null,null,null,null,null,null,null,null,null,null,null,null,null,null,null,null,null,null,null,null,null,null,"FA00068","Désodorisants d'intérieur",-1.24,1.18,0.66,-2.34]
[null,null,null,null,null,null,null,null,null,null,null,null,null,null,null,null,null,null,null,null,null,null,"FA00036","Confiserie de sucre",-1.48,0.96,-1.07,-1.98]
[null,null,null,null,null,null,null,null,null,null,null,null,null,null,null,null,null,null,null,null,null,null,"FA00066","Eponges, tampons A récurer",-1.49,1.46,-3.53,-2.78]
[null,null,null,null,null,null,null,null,null,null,null,null,null,null,null,null,null,null,null,null,null,null,"FA00096","LITIERES POUR ANIMAUX",-1.54,-1.89,-0.06,-1.53]
[null,null,null,null,null,null,null,null,null,null,null,null,null,null,null,null,null,null,null,null,null,null,"FA00090","Bas et collants",-1.56,-1.83,-0.74,-1.5]
[null,null,null,null,null,null,null,null,null,null,null,null,null,null,null,null,null,null,null,null,null,null,"FA00057","Parapharmacie",-1.59,0.61,2.52,-2.0699999999999998]
[null,null,null,null,null,null,null,null,null,null,null,null,null,null,null,null,null,null,null,null,null,null,"FA00087","Traiteur libre service",-1.61,-0.88,-0.73,-2.1]
[null,null,null,null,null,null,null,null,null,null,null,null,null,null,null,null,null,null,null,null,null,null,"FA00041","Jus, nectar fruit,legume",-1.67,0.66,-0.69,-4.84]
[null,null,null,null,null,null,null,null,null,null,null,null,null,null,null,null,null,null,null,null,null,null,"FA00094","Piles",-1.67,-2.62,1.63,-1.58]
[null,null,null,null,null,null,null,null,null,null,null,null,null,null,null,null,null,null,null,null,null,null,"FA00032","Miel, confiture, compote",-1.68,0.53,1.1499999999999999,-3.11]
[null,null,null,null,null,null,null,null,null,null,null,null,null,null,null,null,null,null,null,null,null,null,"FA00019","Aide patisserie, desserts",-1.72,-1.35,2.68,-1.84]
[null,null,null,null,null,null,null,null,null,null,null,null,null,null,null,null,null,null,null,null,null,null,"FA00070","Cirage, entret,teintu cuir",-1.72,-2.1,null,-1.69]
[null,null,null,null,null,null,null,null,null,null,null,null,null,null,null,null,null,null,null,null,null,null,"FA00089","Vaisselle jetable",-1.8,-1.82,-1.39,-1.92]
[null,null,null,null,null,null,null,null,null,null,null,null,null,null,null,null,null,null,null,null,null,null,"FA00082","Légumes surgelés",-1.82,-0.7,-0.8,-4]
[null,null,null,null,null,null,null,null,null,null,null,null,null,null,null,null,null,null,null,null,null,null,"FA00042","Bière, boisson base bière",-1.84,0.7,0.21,-2.15]
[null,null,null,null,null,null,null,null,null,null,null,null,null,null,null,null,null,null,null,null,null,null,"FA00020","Biscuits sucrés",-1.87,0.68,0.79,-3.53]
[null,null,null,null,null,null,null,null,null,null,null,null,null,null,null,null,null,null,null,null,null,null,"FA00021","Patisserie industrielle",-2.02,0.35,0.41,-3.5]
[null,null,null,null,null,null,null,null,null,null,null,null,null,null,null,null,null,null,null,null,null,null,"FA00084","Surgelés sucrés",-2.0499999999999998,1.37,1.38,-5.14]
[null,null,null,null,null,null,null,null,null,null,null,null,null,null,null,null,null,null,null,null,null,null,"FA00009","Potages,bouill,aide culinai",-2.06,1.6,-0.03,-2.71]
[null,null,null,null,null,null,null,null,null,null,null,null,null,null,null,null,null,null,null,null,null,null,"FA00040","Boisson rafraich ss alcool",-2.08,1.45,0.79,-3.22]
[null,null,null,null,null,null,null,null,null,null,null,null,null,null,null,null,null,null,null,null,null,null,"FA00058","Hygiène fèminine",-2.08,0.26,-1.7,-3.22]
[null,null,null,null,null,null,null,null,null,null,null,null,null,null,null,null,null,null,null,null,null,null,"FA00022","Produits apéritifs, chips",-2.16,-0.24,2.2999999999999998,-3.6]
[null,null,null,null,null,null,null,null,null,null,null,null,null,null,null,null,null,null,null,null,null,null,"FA00013","Sauces, prép condimentaires",-2.2200000000000002,-0.04,0.94,-3.18]
[null,null,null,null,null,null,null,null,null,null,null,null,null,null,null,null,null,null,null,null,null,null,"FA00034","Chocolat en tablette",-2.2400000000000002,7.0000000000000007E-2,0.45,-3.14]
[null,null,null,null,null,null,null,null,null,null,null,null,null,null,null,null,null,null,null,null,null,null,"FA00007","Pates alimentaires",-2.33,0.13,1.31,-3.48]
[null,null,null,null,null,null,null,null,null,null,null,null,null,null,null,null,null,null,null,null,null,null,"FA00071","Lessives, savons de ménage",-2.36,0.8,-4.83,-3.3]
[null,null,null,null,null,null,null,null,null,null,null,null,null,null,null,null,null,null,null,null,null,null,"FA00004","Légumes en conserve",-2.39,-1.0900000000000001,2.21,-4.0199999999999996]
[null,null,null,null,null,null,null,null,null,null,null,null,null,null,null,null,null,null,null,null,null,null,"FA00074","Yaourt,dessert lac,froma bl",-2.4700000000000002,-0.59,-0.34,-3.62]
[null,null,null,null,null,null,null,null,null,null,null,null,null,null,null,null,null,null,null,null,null,null,"FA00067","Emballage ménag,filtre café",-2.5099999999999998,-0.72,1.57,-4.82]
[null,null,null,null,null,null,null,null,null,null,null,null,null,null,null,null,null,null,null,null,null,null,"FA00086","Pates fraIches",-2.54,-0.33,-2.33,-3.74]
[null,null,null,null,null,null,null,null,null,null,null,null,null,null,null,null,null,null,null,null,null,null,"FA00097","Huile moteur",-2.62,-2.89,0.34,-2.79]
[null,null,null,null,null,null,null,null,null,null,null,null,null,null,null,null,null,null,null,null,null,null,"FA00035","Confiserie de chocolat",-2.72,0.68,0.18,-3.15]
[null,null,null,null,null,null,null,null,null,null,null,null,null,null,null,null,null,null,null,null,null,null,"FA00061","Mouchoirs papier, lingettes",-2.76,-2.5299999999999998,-0.78,-3.1]
[null,null,null,null,null,null,null,null,null,null,null,null,null,null,null,null,null,null,null,null,null,null,"FA00065","Nettoyants ménager, débouch",-2.81,0.1,-0.21,-3.86]
[null,null,null,null,null,null,null,null,null,null,null,null,null,null,null,null,null,null,null,null,null,null,"FA00008","Farines, farineux, semoules",-2.88,-0.93,-2.84,-3.58]
[null,null,null,null,null,null,null,null,null,null,null,null,null,null,null,null,null,null,null,null,null,null,"FA00050","Rasage, aprés rasage",-2.9,-1.19,-1.59,-3.26]
[null,null,null,null,null,null,null,null,null,null,null,null,null,null,null,null,null,null,null,null,null,null,"FA00015","Aliments chiens et chats",-3.02,0.81,2.44,-4.53]
[null,null,null,null,null,null,null,null,null,null,null,null,null,null,null,null,null,null,null,null,null,null,"FA00025","Poudres petits déjeuners",-3.06,-0.62,0.83,-3.83]
[null,null,null,null,null,null,null,null,null,null,null,null,null,null,null,null,null,null,null,null,null,null,"FA00031","Sucres et édulcorants",-3.13,-0.66,-3.55,-3.45]
[null,null,null,null,null,null,null,null,null,null,null,null,null,null,null,null,null,null,null,null,null,null,"FA00028","Thés et infusions",-3.3,0.21,0.34,-4.18]
[null,null,null,null,null,null,null,null,null,null,null,null,null,null,null,null,null,null,null,null,null,null,"FA00072","Assouplissant, entret linge",-3.31,-0.42,-0.46,-4.25]
[null,null,null,null,null,null,null,null,null,null,null,null,null,null,null,null,null,null,null,null,null,null,"FA00017","Produits diététiques",-3.34,-0.55000000000000004,3.68,-3.64]
[null,null,null,null,null,null,null,null,null,null,null,null,null,null,null,null,null,null,null,null,null,null,"FA00054","Savon, bain, douche adu+bb",-3.34,-0.35,1.82,-4.1100000000000003]
[null,null,null,null,null,null,null,null,null,null,null,null,null,null,null,null,null,null,null,null,null,null,"FA00023","Panification sèche",-3.37,-0.88,0.11,-4.6900000000000004]
[null,null,null,null,null,null,null,null,null,null,null,null,null,null,null,null,null,null,null,null,null,null,"FA00026","Céréales",-3.38,0.51,-0.88,-5.28]
[null,null,null,null,null,null,null,null,null,null,null,null,null,null,null,null,null,null,null,null,null,null,"FA00060","Coton",-3.45,-2.57,-3.15,-5.25]
[null,null,null,null,null,null,null,null,null,null,null,null,null,null,null,null,null,null,null,null,null,null,"FA00037","Chewing gum",-3.58,6.25,null,-3.73]
[null,null,null,null,null,null,null,null,null,null,null,null,null,null,null,null,null,null,null,null,null,null,"FA00055","Hygiène dentaire",-3.67,-7.0000000000000007E-2,1.24,-4.3099999999999996]
[null,null,null,null,null,null,null,null,null,null,null,null,null,null,null,null,null,null,null,null,null,null,"FA00093","Petit électroménager",-3.8,-2.9,-0.18,-3.99]
[null,null,null,null,null,null,null,null,null,null,null,null,null,null,null,null,null,null,null,null,null,null,"FA00091","GANTS DE MENAGE JETABLES",-3.91,-2.67,-16.95,-4.29]
[null,null,null,null,null,null,null,null,null,null,null,null,null,null,null,null,null,null,null,null,null,null,"FA00006","Riz",-4,-3.38,1.28,-4.71]
[null,null,null,null,null,null,null,null,null,null,null,null,null,null,null,null,null,null,null,null,null,null,"FA00064","Prod vaisselle main,machine",-4,-0.73,-0.03,-5.85]
[null,null,null,null,null,null,null,null,null,null,null,null,null,null,null,null,null,null,null,null,null,null,"FA00052","Soins corps, visage adu+bb",-4.43,-6.35,2.41,-4.1900000000000004]
[null,null,null,null,null,null,null,null,null,null,null,null,null,null,null,null,null,null,null,null,null,null,"FA00024","Lait poudre,concentré adult",-4.4800000000000004,-1.01,-1.98,-5.28]
[null,null,null,null,null,null,null,null,null,null,null,null,null,null,null,null,null,null,null,null,null,null,"FA00056","Produits capillaires",-4.54,-3.33,-0.1,-4.72]
[null,null,null,null,null,null,null,null,null,null,null,null,null,null,null,null,null,null,null,null,null,null,"FA00051","Déodorant,parfum,edt adu+bb",-4.8899999999999997,-9.3699999999999992,0.47,-4.45]
[null,null,null,null,null,null,null,null,null,null,null,null,null,null,null,null,null,null,null,null,null,null,"FA00088","Panification industr fraIc",-5.01,-4.08,-7.0000000000000007E-2,-5.82]
[null,null,null,null,null,null,null,null,null,null,null,null,null,null,null,null,null,null,null,null,null,null,"FA00038","Eaux",-5.2,0.06,-1.73,-6.5]
[null,null,null,null,null,null,null,null,null,null,null,null,null,null,null,null,null,null,null,null,null,null,"FA00016","Aliments infantiles",-5.83,1.26,null,-6.48]

{"sheet":"Familles Moins","index":6,"n_rows":98,"n_cols":28,"rows_kept":98,"cut":false,"hidden":false,"merged":[[1,1,2,2],[13,1,13,3]]}
[null,null,null,null,null,null,null,null,null,null,null,null,null,null,null,null,null,null,null,null,null,null,"grprd","Fam/ray","Exhaustif","MDD","PPX","mfab"]
[null,"Retour au sommaire",null,null,null,null,null,null,null,null,null,null,null,null,null,null,null,null,null,null,null,null,"FA00016","Aliments infantiles",-5.83,1.26,null,-6.48]
[null,null,null,null,null,null,null,null,null,null,null,null,null,null,null,null,null,null,"EXHAUSTIF","MDD","PPX","mfab","FA00038","Eaux",-5.2,0.06,-1.73,-6.5]
[null,null,null,null,null,null,null,null,null,null,null,null,null,null,null,null,null,null,null,null,null,null,"FA00088","Panification industr fraIc",-5.01,-4.08,-7.0000000000000007E-2,-5.82]
[null,null,null,null,null,null,null,null,null,null,null,null,null,null,null,null,null,"Aliments infantiles",-5.83,1.26,null,-6.48,"FA00051","Déodorant,parfum,edt adu+bb",-4.8899999999999997,-9.3699999999999992,0.47,-4.45]
[null,null,null,null,null,null,null,null,null,null,null,null,null,null,null,null,null,"Eaux",-5.2,0.06,-1.73,-6.5,"FA00056","Produits capillaires",-4.54,-3.33,-0.1,-4.72]
[null,null,null,null,null,null,null,null,null,null,null,null,null,null,null,null,null,"Panification industr fraIc",-5.01,-4.08,-7.0000000000000007E-2,-5.82,"FA00024","Lait poudre,concentré adult",-4.4800000000000004,-1.01,-1.98,-5.28]
[null,null,null,null,null,null,null,null,null,null,null,null,null,null,null,null,null,"Déodorant,parfum,edt adu+bb",-4.8899999999999997,-9.3699999999999992,0.47,-4.45,"FA00052","Soins corps, visage adu+bb",-4.43,-6.35,2.41,-4.1900000000000004]
[null,null,null,null,null,null,null,null,null,null,null,null,null,null,null,null,null,"Produits capillaires",-4.54,-3.33,-0.1,-4.72,"FA00006","Riz",-4,-3.38,1.28,-4.71]
[null,null,null,null,null,null,null,null,null,null,null,null,null,null,null,null,null,"Lait poudre,concentré adult",-4.4800000000000004,-1.01,-1.98,-5.28,"FA00064","Prod vaisselle main,machine",-4,-0.73,-0.03,-5.85]
[null,null,null,null,null,null,null,null,null,null,null,null,null,null,null,null,null,"Soins corps, visage adu+bb",-4.43,-6.35,2.41,-4.1900000000000004,"FA00091","GANTS DE MENAGE JETABLES",-3.91,-2.67,-16.95,-4.29]
[null,null,null,null,null,null,null,null,null,null,null,null,null,null,null,null,null,"Riz",-4,-3.38,1.28,-4.71,"FA00093","Petit électroménager",-3.8,-2.9,-0.18,-3.99]
[null,null,null,null,null,null,null,null,null,null,null,null,null,null,null,null,null,"Prod vaisselle main,machine",-4,-0.73,-0.03,-5.85,"FA00055","Hygiène dentaire",-3.67,-7.0000000000000007E-2,1.24,-4.3099999999999996]
[null,null,null,null,null,"EXHAUSTIF",null,"MARQUES FABRICANTS",null,"MDD",null,"PPX",null,null,null,null,null,"Gants de ménage jetables",-3.91,-2.67,-16.95,-4.29,"FA00037","Chewing gum",-3.58,6.25,null,-3.73]
[null,{"$f":"+R5","v":"Aliments infantiles"},null,null,null,{"$f":"+S5","v":-5.83},null,{"$f":"+V5","v":-6.48},null,{"$f":"+T5","v":1.26},null,{"$f":"+U5","v":0},null,null,null,null,null,null,null,null,null,null,"FA00060","Coton",-3.45,-2.57,-3.15,-5.25]
[null,"Eaux",null,null,null,-5.2,null,-6.5,null,0.06,null,-1.73,null,null,null,null,null,null,null,null,null,null,"FA00026","Céréales",-3.38,0.51,-0.88,-5.28]
[null,"Panification industr fraIc",null,null,null,-5.01,null,-5.82,null,-4.08,null,-7.0000000000000007E-2,null,null,null,null,null,null,null,null,null,null,"FA00023","Panification sèche",-3.37,-0.88,0.11,-4.6900000000000004]
[null,"Déodorant,parfum,edt adu+bb",null,null,null,-4.8899999999999997,null,-4.45,null,-9.3699999999999992,null,0.47,null,null,null,null,null,null,null,null,null,null,"FA00017","Produits diététiques",-3.34,-0.55000000000000004,3.68,-3.64]
[null,"Produits capillaires",null,null,null,-4.54,null,-4.72,null,-3.33,null,-0.1,null,null,null,null,null,null,null,null,null,null,"FA00054","Savon, bain, douche adu+bb",-3.34,-0.35,1.82,-4.1100000000000003]
[null,"Lait poudre,concentré adult",null,null,null,-4.4800000000000004,null,-5.28,null,-1.01,null,-1.98,null,null,null,null,null,null,null,null,null,null,"FA00072","Assouplissant, entret linge",-3.31,-0.42,-0.46,-4.25]
[null,"Soins corps, visage adu+bb",null,null,null,-4.43,null,-4.1900000000000004,null,-6.35,null,2.41,null,null,null,null,null,null,null,null,null,null,"FA00028","Thés et infusions",-3.3,0.21,0.34,-4.18]
[null,"Riz",null,null,null,-4,null,-4.71,null,-3.38,null,1.28,null,null,null,null,null,null,null,null,null,null,"FA00031","Sucres et édulcorants",-3.13,-0.66,-3.55,-3.45]
[null,"Prod vaisselle main,machine",null,null,null,-4,null,-5.85,null,-0.73,null,-0.03,null,null,null,null,null,null,null,null,null,null,"FA00025","Poudres petits déjeuners",-3.06,-0.62,0.83,-3.83]
[null,"Gants de ménage jetables",null,null,null,-3.91,null,-4.29,null,-2.67,null,-16.95,null,null,null,null,null,null,null,null,null,null,"FA00015","Aliments chiens et chats",-3.02,0.81,2.44,-4.53]
[null,null,null,null,null,null,null,null,null,null,null,null,null,null,null,null,null,null,null,null,null,null,"FA00050","Rasage, aprés rasage",-2.9,-1.19,-1.59,-3.26]
[null,null,null,null,null,null,null,null,null,null,null,null,null,null,null,null,null,null,null,null,null,null,"FA00061","Mouchoirs papier, lingettes",-2.76,-2.5299999999999998,-0.78,-3.1]
[null,null,null,null,null,null,null,null,null,null,null,null,null,null,null,null,null,null,null,null,null,null,"FA00035","Confiserie de chocolat",-2.72,0.68,0.18,-3.15]
[null,null,null,null,null,null,null,null,null,null,null,null,null,null,null,null,null,null,null,null,null,null,"FA00097","Huile moteur",-2.62,-2.89,0.34,-2.79]
[null,null,null,null,null,null,null,null,null,null,null,null,null,null,null,null,null,null,null,null,null,null,"FA00086","Pates fraIches",-2.54,-0.33,-2.33,-3.74]
[null,null,null,null,null,null,null,null,null,null,null,null,null,null,null,null,null,null,null,null,null,null,"FA00067","Emballage ménag,filtre café",-2.5099999999999998,-0.72,1.57,-4.82]
[null,null,null,null,null,null,null,null,null,null,null,null,null,null,null,null,null,null,null,null,null,null,"FA00074","Yaourt,dessert lac,froma bl",-2.4700000000000002,-0.59,-0.34,-3.62]
[null,null,null,null,null,null,null,null,null,null,null,null,null,null,null,null,null,null,null,null,null,null,"FA00004","Légumes en conserve",-2.39,-1.0900000000000001,2.21,-4.0199999999999996]
[null,null,null,null,null,null,null,null,null,null,null,null,null,null,null,null,null,null,null,null,null,null,"FA00071","Lessives, savons de ménage",-2.36,0.8,-4.83,-3.3]
[null,null,null,null,null,null,null,null,null,null,null,null,null,null,null,null,null,null,null,null,null,null,"FA00007","Pates alimentaires",-2.33,0.13,1.31,-3.48]
[null,null,null,null,null,null,null,null,null,null,null,null,null,null,null,null,null,null,null,null,null,null,"FA00034","Chocolat en tablette",-2.2400000000000002,7.0000000000000007E-2,0.45,-3.14]
[null,null,null,null,null,null,null,null,null,null,null,null,null,null,null,null,null,null,null,null,null,null,"FA00013","Sauces, prép condimentaires",-2.2200000000000002,-0.04,0.94,-3.18]
[null,null,null,null,null,null,null,null,null,null,null,null,null,null,null,null,null,null,null,null,null,null,"FA00022","Produits apéritifs, chips",-2.16,-0.24,2.2999999999999998,-3.6]
[null,null,null,null,null,null,null,null,null,null,null,null,null,null,null,null,null,null,null,null,null,null,"FA00040","Boisson rafraich ss alcool",-2.08,1.45,0.79,-3.22]
[null,null,null,null,null,null,null,null,null,null,null,null,null,null,null,null,null,null,null,null,null,null,"FA00058","Hygiène fèminine",-2.08,0.26,-1.7,-3.22]
[null,null,null,null,null,null,null,null,null,null,null,null,null,null,null,null,null,null,null,null,null,null,"FA00009","Potages,bouill,aide culinai",-2.06,1.6,-0.03,-2.71]
[null,null,null,null,null,null,null,null,null,null,null,null,null,null,null,null,null,null,null,null,null,null,"FA00084","Surgelés sucrés",-2.0499999999999998,1.37,1.38,-5.14]
[null,null,null,null,null,null,null,null,null,null,null,null,null,null,null,null,null,null,null,null,null,null,"FA00021","Patisserie industrielle",-2.02,0.35,0.41,-3.5]
[null,null,null,null,null,null,null,null,null,null,null,null,null,null,null,null,null,null,null,null,null,null,"FA00020","Biscuits sucrés",-1.87,0.68,0.79,-3.53]
[null,null,null,null,null,null,null,null,null,null,null,null,null,null,null,null,null,null,null,null,null,null,"FA00042","Bière, boisson base bière",-1.84,0.7,0.21,-2.15]
[null,null,null,null,null,null,null,null,null,null,null,null,null,null,null,null,null,null,null,null,null,null,"FA00082","Légumes surgelés",-1.82,-0.7,-0.8,-4]
[null,null,null,null,null,null,null,null,null,null,null,null,null,null,null,null,null,null,null,null,null,null,"FA00089","Vaisselle jetable",-1.8,-1.82,-1.39,-1.92]
[null,null,null,null,null,null,null,null,null,null,null,null,null,null,null,null,null,null,null,null,null,null,"FA00019","Aide patisserie, desserts",-1.72,-1.35,2.68,-1.84]
[null,null,null,null,null,null,null,null,null,null,null,null,null,null,null,null,null,null,null,null,null,null,"FA00070","Cirage, entret,teintu cuir",-1.72,-2.1,null,-1.69]
[null,null,null,null,null,null,null,null,null,null,null,null,null,null,null,null,null,null,null,null,null,null,"FA00032","Miel, confiture, compote",-1.68,0.53,1.1499999999999999,-3.11]
[null,null,null,null,null,null,null,null,null,null,null,null,null,null,null,null,null,null,null,null,null,null,"FA00041","Jus, nectar fruit,legume",-1.67,0.66,-0.69,-4.84]
[null,null,null,null,null,null,null,null,null,null,null,null,null,null,null,null,null,null,null,null,null,null,"FA00094","Piles",-1.67,-2.62,1.63,-1.58]
[null,null,null,null,null,null,null,null,null,null,null,null,null,null,null,null,null,null,null,null,null,null,"FA00087","Traiteur libre service",-1.61,-0.88,-0.73,-2.1]
[null,null,null,null,null,null,null,null,null,null,null,null,null,null,null,null,null,null,null,null,null,null,"FA00057","Parapharmacie",-1.59,0.61,2.52,-2.0699999999999998]
[null,null,null,null,null,null,null,null,null,null,null,null,null,null,null,null,null,null,null,null,null,null,"FA00090","Bas et collants",-1.56,-1.83,-0.74,-1.5]
[null,null,null,null,null,null,null,null,null,null,null,null,null,null,null,null,null,null,null,null,null,null,"FA00096","LITIERES POUR ANIMAUX",-1.54,-1.89,-0.06,-1.53]
[null,null,null,null,null,null,null,null,null,null,null,null,null,null,null,null,null,null,null,null,null,null,"FA00066","Eponges, tampons A récurer",-1.49,1.46,-3.53,-2.78]
[null,null,null,null,null,null,null,null,null,null,null,null,null,null,null,null,null,null,null,null,null,null,"FA00036","Confiserie de sucre",-1.48,0.96,-1.07,-1.98]
[null,null,null,null,null,null,null,null,null,null,null,null,null,null,null,null,null,null,null,null,null,null,"FA00068","Désodorisants d'intérieur",-1.24,1.18,0.66,-2.34]
[null,null,null,null,null,null,null,null,null,null,null,null,null,null,null,null,null,null,null,null,null,null,"FA00030","Café torréfié",-1.21,0.59,-0.27,-1.81]
[null,null,null,null,null,null,null,null,null,null,null,null,null,null,null,null,null,null,null,null,null,null,"FA00073","Charcuterie libre service",-1.21,0.17,-0.34,-2.42]
[null,null,null,null,null,null,null,null,null,null,null,null,null,null,null,null,null,null,null,null,null,null,"FA00010","Huile",-1.19,0.47,-3.51,-1.77]
[null,null,null,null,null,null,null,null,null,null,null,null,null,null,null,null,null,null,null,null,null,null,"FA00003","Conserves de poissons",-1.1499999999999999,-0.2,0.38,-1.75]
[null,null,null,null,null,null,null,null,null,null,null,null,null,null,null,null,null,null,null,null,null,null,"FA00012","Sel, poivre, épices, herbes",-1.1299999999999999,3.4,6.56,-2.2000000000000002]
[null,null,null,null,null,null,null,null,null,null,null,null,null,null,null,null,null,null,null,null,null,null,"FA00076","Beurre,margarine,creme frai",-1.1299999999999999,0.03,-1.05,-1.64]
[null,null,null,null,null,null,null,null,null,null,null,null,null,null,null,null,null,null,null,null,null,null,"FA00062","Papier hygiénique",-1.1200000000000001,-0.6,-0.22,-2.5499999999999998]
[null,null,null,null,null,null,null,null,null,null,null,null,null,null,null,null,null,null,null,null,null,null,"FA00077","Oeufs",-1.07,-3.44,-0.27,0.28999999999999998]
[null,null,null,null,null,null,null,null,null,null,null,null,null,null,null,null,null,null,null,null,null,null,"FA00069","Insecticides",-1.04,1.07,8.0500000000000007,-2.1800000000000002]
[null,null,null,null,null,null,null,null,null,null,null,null,null,null,null,null,null,null,null,null,null,null,"FA00053","Maquillage",-0.97,-0.11,-0.46,-1.06]
[null,null,null,null,null,null,null,null,null,null,null,null,null,null,null,null,null,null,null,null,null,null,"FA00011","Vinaigre",-0.86,-0.01,-0.06,-1.52]
[null,null,null,null,null,null,null,null,null,null,null,null,null,null,null,null,null,null,null,null,null,null,"FA00029","Chicorée,chic+caf,cafe solu",-0.85,0.95,-1.45,-1.36]
[null,null,null,null,null,null,null,null,null,null,null,null,null,null,null,null,null,null,null,null,null,null,"FA00095","Ampoules électriques",-0.84,0.43,2.46,-1.82]
[null,null,null,null,null,null,null,null,null,null,null,null,null,null,null,null,null,null,null,null,null,null,"FA00014","Légumes vinaig, huile, saum",-0.82,0.5,3.67,-1.64]
[null,null,null,null,null,null,null,null,null,null,null,null,null,null,null,null,null,null,null,null,null,null,"FA00001","Plats cuisinés",-0.76,0.72,0.97,-1.55]
[null,null,null,null,null,null,null,null,null,null,null,null,null,null,null,null,null,null,null,null,null,null,"FA00320","Changes complets, couches,culottes absorbantes bebes",-0.76,1.06,-0.05,-3.15]
[null,null,null,null,null,null,null,null,null,null,null,null,null,null,null,null,null,null,null,null,null,null,"FA00033","Fruits au sirop, au jus",-0.75,1.1299999999999999,2.64,-2.54]
[null,null,null,null,null,null,null,null,null,null,null,null,null,null,null,null,null,null,null,null,null,null,"FA00047","Whisky, bourbon",-0.7,1.67,0.98,-0.96]
[null,null,null,null,null,null,null,null,null,null,null,null,null,null,null,null,null,null,null,null,null,null,"FA00321","Protections incontinence adultes",-0.7,2.2999999999999998,null,-3.98]
[null,null,null,null,null,null,null,null,null,null,null,null,null,null,null,null,null,null,null,null,null,null,"FA00039","Sirop,concent,poudre boiss",-0.55000000000000004,4.12,-0.56000000000000005,-3.31]
[null,null,null,null,null,null,null,null,null,null,null,null,null,null,null,null,null,null,null,null,null,null,"FA00063","Essuie tout",-0.47,1.93,-0.83,-2.98]
[null,null,null,null,null,null,null,null,null,null,null,null,null,null,null,null,null,null,null,null,null,null,"FA00027","Pate A tartiner",-0.46,0.18,-0.02,-0.77]
[null,null,null,null,null,null,null,null,null,null,null,null,null,null,null,null,null,null,null,null,null,null,"FA00092","Supports Informatiques",-0.28000000000000003,2.0099999999999998,-1.21,-0.8]
[null,null,null,null,null,null,null,null,null,null,null,null,null,null,null,null,null,null,null,null,null,null,"FA00079","Entrée,pizza,fast food surg",-0.25,1.75,-0.81,-2.12]
[null,null,null,null,null,null,null,null,null,null,null,null,null,null,null,null,null,null,null,null,null,null,"FA00049","Apéritifs sans alcool",-0.05,4.46,1.39,-1]
[null,null,null,null,null,null,null,null,null,null,null,null,null,null,null,null,null,null,null,null,null,null,"FA00085","Saurisserie",0.05,0.86,2.06,-0.73]
[null,null,null,null,null,null,null,null,null,null,null,null,null,null,null,null,null,null,null,null,null,null,"FA00005","Légumes secs et deshydratés",0.11,0.52,7.77,-0.22]
[null,null,null,null,null,null,null,null,null,null,null,null,null,null,null,null,null,null,null,null,null,null,"FA00045","Champagne, mousseux",0.11,1.78,-0.48,-0.46]
[null,null,null,null,null,null,null,null,null,null,null,null,null,null,null,null,null,null,null,null,null,null,"FA00048","Apéritifs alcoolisés",0.11,1.63,0.01,-0.35]
[null,null,null,null,null,null,null,null,null,null,null,null,null,null,null,null,null,null,null,null,null,null,"FA00078","Fromages",0.12,0.97,1.3,-0.37]
[null,null,null,null,null,null,null,null,null,null,null,null,null,null,null,null,null,null,null,null,null,null,"FA00083","Viande,volaill,charcut surg",0.16,1.4,0.52,-1.1200000000000001]
[null,null,null,null,null,null,null,null,null,null,null,null,null,null,null,null,null,null,null,null,null,null,"FA00075","Lait",0.21,0.71,3.67,-0.14000000000000001]
[null,null,null,null,null,null,null,null,null,null,null,null,null,null,null,null,null,null,null,null,null,null,"FA00044","Vin (Table et Pays)",0.43,1.83,3.55,-0.61]
[null,null,null,null,null,null,null,null,null,null,null,null,null,null,null,null,null,null,null,null,null,null,"FA00080","Plats cuisinés tt prêt surg",0.48,1.56,0.48,-1.1399999999999999]
[null,null,null,null,null,null,null,null,null,null,null,null,null,null,null,null,null,null,null,null,null,null,"FA00081","FRUITS MER, POISSON NAT, PANES, GRENOUILLE ESCARGOT",0.51,1.93,-0.12,-0.98]
[null,null,null,null,null,null,null,null,null,null,null,null,null,null,null,null,null,null,null,null,null,null,"FA00002","Paté,rillet,sciss,foie gras",0.54,2.81,0.81,-0.59]
[null,null,null,null,null,null,null,null,null,null,null,null,null,null,null,null,null,null,null,null,null,null,"FA00098","Traitements, engrais plant",0.72,0.84,4.45,0.61]
[null,null,null,null,null,null,null,null,null,null,null,null,null,null,null,null,null,null,null,null,null,null,"FA00046","Digestif,liqueur,eau de vie",0.85,2.3199999999999998,-0.83,0.2]
[null,null,null,null,null,null,null,null,null,null,null,null,null,null,null,null,null,null,null,null,null,null,"FA00043","Cidre, cider",1.17,3.69,-0.01,0.11]
[null,null,null,null,null,null,null,null,null,null,null,null,null,null,null,null,null,null,null,null,null,null,"FA00018","Fruits secs, pruneaux",4.3899999999999997,6.83,8.86,3.09]

{"sheet":"Familles HD","index":7,"n_rows":92,"n_cols":30,"rows_kept":92,"cut":false,"hidden":false,"merged":[[10,1,10,3],[10,10,10,12],[1,1,2,2]]}
[null,null,null,null,null,null,null,null,null,null,null,null,null,null,null,null,null,null,null,null,null,null,null,null,null,null,"grprd","Fam/ray","Exhaustif","MP Hard-Discount"]
[null,"Retour au sommaire",null,null,null,null,null,null,null,null,null,null,null,null,null,null,null,null,null,null,null,null,null,null,null,null,"FA00070","Cirage, entret,teintu cuir",-23.55,-28.02]
[null,null,null,null,null,null,null,null,null,null,null,null,null,null,null,null,null,null,null,null,null,null,"EXHAUSTIF","Marques Propres",null,null,"FA00096","LITIERES POUR ANIMAUX",-18.059999999999999,-21.316984126984131]
[null,null,null,null,null,null,null,null,null,null,null,null,null,null,null,null,null,null,null,null,null,"Sel, poivre, épices, herbes",0.8,1.5797101449275361E-2,null,null,"FA00024","Lait poudre,concentré adult",-17.54,-19.09]
[null,null,null,null,null,null,null,null,null,null,null,null,null,null,null,null,null,null,null,null,null,"Fruits secs, pruneaux",0.59,-3.1810223642172524,null,null,"FA00017","Produits diététiques",-14.07,-17.62]
[null,null,null,null,null,null,null,null,null,null,null,null,null,null,null,null,null,null,null,null,null,"Essuie tout",-0.69,-0.71247422680412376,null,null,"FA00060","Coton",-13.92,-15.18294498381877]
[null,null,null,null,null,null,null,null,null,null,null,null,null,null,null,null,null,null,null,null,null,"Vin (Table et Pays)",-0.85,-5.7944660194174764,null,null,"FA00051","Déodorant,parfum,edt adu+bb",-12.35,-21.854464944649447]
[null,null,null,null,null,null,null,null,null,null,null,null,null,null,null,null,null,null,null,null,null,"Pate A tartiner",-1.04,-1.6965648854961832,null,null,"FA00079","Entrée,pizza,fast food surg",-12.26,-13.001613832853026]
[null,null,null,null,null,null,null,null,null,null,null,null,null,null,null,null,null,null,null,null,null,"Apéritifs sans alcool",-1.23,-4.04,null,null,"FA00055","Hygiène dentaire",-12.21,-15.796426512968299]
[null,null,null,null,null,null,null,null,null,null,null,null,null,null,null,null,null,null,null,null,null,"Champagne, mousseux",-1.27,-4.2993548387096778,null,null,"FA00082","Légumes surgelés",-10.92,-11.200367751060821]
[null,null,null,null,null,"EXHAUSTIF",null,"Marques Propres",null,null,null,null,null,null,"EXHAUSTIF",null,"Marques Propres",null,null,null,null,"Parapharmacie",-1.61,-0.99,null,null,"FA00052","Soins corps, visage adu+bb",-10.07,-15.572657342657342]
[null,{"$f":"+V4","v":"Sel, poivre, épices, herbes"},null,null,null,{"$f":"+W4","v":0.8},null,{"$f":"+X4","v":1.5797101449275361E-2},null,null,{"$f":"+V20","v":"Cirage, entret,teintu cuir"},null,null,null,{"$f":"+W20","v":-23.55},null,{"$f":"+X20","v":-28.02},null,null,null,null,"Légumes secs et deshydratés",-1.97,-4.53,null,null,"FA00077","Oeufs",-9.64,-9.5537810945273627]
[null,"Fruits secs, pruneaux",null,null,null,0.59,null,-3.1810223642172524,null,null,"LITIERES POUR ANIMAUX",null,null,null,-18.059999999999999,null,-21.316984126984131,null,null,null,null,"Patisserie industrielle",-2.14,-1.962223137093454,null,null,"FA00320","Changes complets, couches,culottes absorbantes bebes",-9.59,-13.203092783505156]
[null,"Essuie tout",null,null,null,-0.69,null,-0.71247422680412376,null,null,"Lait poudre,concentré adult",null,null,null,-17.54,null,-19.09,null,null,null,null,null,null,null,null,null,"FA00006","Riz",-9.1199999999999992,-9.8386806883365221]
[null,"Vin (Table et Pays)",null,null,null,-0.85,null,-5.7944660194174764,null,null,"Produits diététiques",null,null,null,-14.07,null,-17.62,null,null,null,null,null,null,null,null,null,"FA00042","Bière, boisson base bière",-8.93,-7.370151515151516]
[null,"Pate A tartiner",null,null,null,-1.04,null,-1.6965648854961832,null,null,"Coton",null,null,null,-13.92,null,-15.18294498381877,null,null,null,null,null,null,null,null,null,"FA00072","Assouplissant, entret linge",-8.81,-9.9929656419529831]
[null,"Apéritifs sans alcool",null,null,null,-1.23,null,-4.04,null,null,"Déodorant,parfum,edt adu+bb",null,null,null,-12.35,null,-21.854464944649447,null,null,null,null,null,null,null,null,null,"FA00035","Confiserie de chocolat",-8.61,-17.138319559228652]
[null,"Champagne, mousseux",null,null,null,-1.27,null,-4.2993548387096778,null,null,"Entrée,pizza,fast food surg",null,null,null,-12.26,null,-13.001613832853026,null,null,null,null,null,null,null,null,null,"FA00075","Lait",-8.3800000000000008,-8.657931596091208]
[null,"Parapharmacie",null,null,null,-1.61,null,-0.99,null,null,"Hygiène dentaire",null,null,null,-12.21,null,-15.796426512968299,null,null,null,null,null,"EXHAUSTIF","Marques Propres",null,null,"FA00068","Désodorisants d'intérieur",-8.3699999999999992,-11.023388090349075]
[null,"Légumes secs et deshydratés",null,null,null,-1.97,null,-4.53,null,null,"Légumes surgelés",null,null,null,-10.92,null,-11.200367751060821,null,null,null,null,"Cirage, entret,teintu cuir",-23.55,-28.02,null,null,"FA00061","Mouchoirs papier, lingettes",-8.07,-7.5846586345381519]
[null,"Patisserie industrielle",null,null,null,-2.14,null,-1.962223137093454,null,null,"Soins corps, visage adu+bb",null,null,null,-10.07,null,-15.572657342657342,null,null,null,null,"LITIERES POUR ANIMAUX",-18.059999999999999,-21.316984126984131,null,null,"FA00009","Potages,bouill,aide culinai",-8.0399999999999991,-7.5172175379426642]
[null,null,null,null,null,null,null,null,null,null,null,null,null,null,null,null,null,null,null,null,null,"Lait poudre,concentré adult",-17.54,-19.09,null,null,"FA00083","Viande,volaill,charcut surg",-7.84,-8.8828614457831314]
[null,"Marques Propres : marques MdD \"Premium\", \"Cœur de Gamme\" et \"Premiers Prix\"",null,null,null,null,null,null,null,null,"Marques Propres : marques MdD \"Premium\", \"Cœur de Gamme\" et \"Premiers Prix\"",null,null,null,null,null,null,null,null,null,null,"Produits diététiques",-14.07,-17.62,null,null,"FA00056","Produits capillaires",-7.75,-8.0702864938608467]
[null,null,null,null,null,null,null,null,null,null,null,null,null,null,null,null,null,null,null,null,null,"Coton",-13.92,-15.18294498381877,null,null,"FA00016","Aliments infantiles",-7.3,2.63]
[null,null,null,null,null,null,null,null,null,null,null,null,null,null,null,null,null,null,null,null,null,"Déodorant,parfum,edt adu+bb",-12.35,-21.854464944649447,null,null,"FA00066","Eponges, tampons A récurer",-7.15,-5.7914545454545445]
[null,null,null,null,null,null,null,null,null,null,null,null,null,null,null,null,null,null,null,null,null,"Entrée,pizza,fast food surg",-12.26,-13.001613832853026,null,null,"FA00015","Aliments chiens et chats",-7.04,-6.2547254237288135]
[null,null,null,null,null,null,null,null,null,null,null,null,null,null,null,null,null,null,null,null,null,"Hygiène dentaire",-12.21,-15.796426512968299,null,null,"FA00028","Thés et infusions",-6.78,-5.129713855421687]
[null,null,null,null,null,null,null,null,null,null,null,null,null,null,null,null,null,null,null,null,null,"Légumes surgelés",-10.92,-11.200367751060821,null,null,"FA00031","Sucres et édulcorants",-6.67,-6.863444976076555]
[null,null,null,null,null,null,null,null,null,null,null,null,null,null,null,null,null,null,null,null,null,"Soins corps, visage adu+bb",-10.07,-15.572657342657342,null,null,"FA00054","Savon, bain, douche adu+bb",-6.66,-5.8136831483350146]
[null,null,null,null,null,null,null,null,null,null,null,null,null,null,null,null,null,null,null,null,null,null,null,null,null,null,"FA00086","Pates fraIches",-6.38,-1.9482352941176473]
[null,null,null,null,null,null,null,null,null,null,null,null,null,null,null,null,null,null,null,null,null,null,null,null,null,null,"FA00004","Légumes en conserve",-6.37,-6.9619001701644923]
[null,null,null,null,null,null,null,null,null,null,null,null,null,null,null,null,null,null,null,null,null,null,null,null,null,null,"FA00007","Pates alimentaires",-6.25,-7.2105488958990529]
[null,null,null,null,null,null,null,null,null,null,null,null,null,null,null,null,null,null,null,null,null,null,null,null,null,null,"FA00041","Jus, nectar fruit,legume",-5.95,-5.9728535877229367]
[null,null,null,null,null,null,null,null,null,null,null,null,null,null,null,null,null,null,null,null,null,null,null,null,null,null,"FA00026","Céréales",-5.92,-5.4515523465703968]
[null,null,null,null,null,null,null,null,null,null,null,null,null,null,null,null,null,null,null,null,null,null,null,null,null,null,"FA00074","Yaourt,dessert lac,froma bl",-5.85,-5.3778653465346533]
[null,null,null,null,null,null,null,null,null,null,null,null,null,null,null,null,null,null,null,null,null,null,null,null,null,null,"FA00076","Beurre,margarine,creme frai",-5.83,-6.7179386309992131]
[null,null,null,null,null,null,null,null,null,null,null,null,null,null,null,null,null,null,null,null,null,null,null,null,null,null,"FA00032","Miel, confiture, compote",-5.82,-5.9146627721720657]
[null,null,null,null,null,null,null,null,null,null,null,null,null,null,null,null,null,null,null,null,null,null,null,null,null,null,"FA00080","Plats cuisinés tt prêt surg",-5.65,-5.8083626760563387]
[null,null,null,null,null,null,null,null,null,null,null,null,null,null,null,null,null,null,null,null,null,null,null,null,null,null,"FA00088","Panification industr fraIc",-5.63,-5.7564236111111109]
[null,null,null,null,null,null,null,null,null,null,null,null,null,null,null,null,null,null,null,null,null,null,null,null,null,null,"FA00030","Café torréfié",-5.6,-7.743288166214997]
[null,null,null,null,null,null,null,null,null,null,null,null,null,null,null,null,null,null,null,null,null,null,null,null,null,null,"FA00321","Protections incontinence adultes",-5.57,{"$error":"#DIV/0!"}]
[null,null,null,null,null,null,null,null,null,null,null,null,null,null,null,null,null,null,null,null,null,null,null,null,null,null,"FA00029","Chicorée,chic+caf,cafe solu",-5.45,-6.3128482328482329]
[null,null,null,null,null,null,null,null,null,null,null,null,null,null,null,null,null,null,null,null,null,null,null,null,null,null,"FA00081","FRUITS MER, POISSON NAT, PANES, GRENOUILLE ESCARGOT",-5.41,-7.3242181818181811]
[null,null,null,null,null,null,null,null,null,null,null,null,null,null,null,null,null,null,null,null,null,null,null,null,null,null,"FA00062","Papier hygiénique",-5.15,-5.2445816733067723]
[null,null,null,null,null,null,null,null,null,null,null,null,null,null,null,null,null,null,null,null,null,null,null,null,null,null,"FA00040","Boisson rafraich ss alcool",-5.12,-6.4536183022275742]
[null,null,null,null,null,null,null,null,null,null,null,null,null,null,null,null,null,null,null,null,null,null,null,null,null,null,"FA00043","Cidre, cider",-4.97,-2.2564285714285712]
[null,null,null,null,null,null,null,null,null,null,null,null,null,null,null,null,null,null,null,null,null,null,null,null,null,null,"FA00053","Maquillage",-4.93,-45.291428571428568]
[null,null,null,null,null,null,null,null,null,null,null,null,null,null,null,null,null,null,null,null,null,null,null,null,null,null,"FA00013","Sauces, prép condimentaires",-4.88,-5.1113885692366701]
[null,null,null,null,null,null,null,null,null,null,null,null,null,null,null,null,null,null,null,null,null,null,null,null,null,null,"FA00002","Paté,rillet,sciss,foie gras",-4.87,-5.8243999999999998]
[null,null,null,null,null,null,null,null,null,null,null,null,null,null,null,null,null,null,null,null,null,null,null,null,null,null,"FA00008","Farines, farineux, semoules",-4.84,-4.5512499999999996]
[null,null,null,null,null,null,null,null,null,null,null,null,null,null,null,null,null,null,null,null,null,null,null,null,null,null,"FA00071","Lessives, savons de ménage",-4.8099999999999996,-4.8299999999999992]
[null,null,null,null,null,null,null,null,null,null,null,null,null,null,null,null,null,null,null,null,null,null,null,null,null,null,"FA00069","Insecticides",-4.78,1.2200000000000002]
[null,null,null,null,null,null,null,null,null,null,null,null,null,null,null,null,null,null,null,null,null,null,null,null,null,null,"FA00050","Rasage, aprés rasage",-4.74,-1.3996610169491526]
[null,null,null,null,null,null,null,null,null,null,null,null,null,null,null,null,null,null,null,null,null,null,null,null,null,null,"FA00064","Prod vaisselle main,machine",-4.7,-3.9311280487804883]
[null,null,null,null,null,null,null,null,null,null,null,null,null,null,null,null,null,null,null,null,null,null,null,null,null,null,"FA00087","Traiteur libre service",-4.6100000000000003,-4.8157167004732928]
[null,null,null,null,null,null,null,null,null,null,null,null,null,null,null,null,null,null,null,null,null,null,null,null,null,null,"FA00084","Surgelés sucrés",-4.5999999999999996,-4.615202952029521]
[null,null,null,null,null,null,null,null,null,null,null,null,null,null,null,null,null,null,null,null,null,null,null,null,null,null,"FA00091","GANTS DE MENAGE JETABLES",-4.5999999999999996,-4.5999999999999996]
[null,null,null,null,null,null,null,null,null,null,null,null,null,null,null,null,null,null,null,null,null,null,null,null,null,null,"FA00058","Hygiène fèminine",-4.5199999999999996,-3.3721261261261262]
[null,null,null,null,null,null,null,null,null,null,null,null,null,null,null,null,null,null,null,null,null,null,null,null,null,null,"FA00034","Chocolat en tablette",-4.47,-4.9274880763116053]
[null,null,null,null,null,null,null,null,null,null,null,null,null,null,null,null,null,null,null,null,null,null,null,null,null,null,"FA00073","Charcuterie libre service",-4.38,-4.6070596631458747]
[null,null,null,null,null,null,null,null,null,null,null,null,null,null,null,null,null,null,null,null,null,null,null,null,null,null,"FA00078","Fromages",-4.37,-4.407786509495744]
[null,null,null,null,null,null,null,null,null,null,null,null,null,null,null,null,null,null,null,null,null,null,null,null,null,null,"FA00047","Whisky, bourbon",-4.09,2.3791469194312794E-2]
[null,null,null,null,null,null,null,null,null,null,null,null,null,null,null,null,null,null,null,null,null,null,null,null,null,null,"FA00085","Saurisserie",-4.01,-4.1950915141430949]
[null,null,null,null,null,null,null,null,null,null,null,null,null,null,null,null,null,null,null,null,null,null,null,null,null,null,"FA00019","Aide patisserie, desserts",-4,-4.9470607028753992]
[null,null,null,null,null,null,null,null,null,null,null,null,null,null,null,null,null,null,null,null,null,null,null,null,null,null,"FA00065","Nettoyants ménager, débouch",-3.98,-4.1413293864370289]
[null,null,null,null,null,null,null,null,null,null,null,null,null,null,null,null,null,null,null,null,null,null,null,null,null,null,"FA00014","Légumes vinaig, huile, saum",-3.53,-3.1768476621417796]
[null,null,null,null,null,null,null,null,null,null,null,null,null,null,null,null,null,null,null,null,null,null,null,null,null,null,"FA00038","Eaux",-3.52,-2.9774642857142859]
[null,null,null,null,null,null,null,null,null,null,null,null,null,null,null,null,null,null,null,null,null,null,null,null,null,null,"FA00020","Biscuits sucrés",-3.36,-3.0950847830874255]
[null,null,null,null,null,null,null,null,null,null,null,null,null,null,null,null,null,null,null,null,null,null,null,null,null,null,"FA00003","Conserves de poissons",-3.35,-3.2463789319678122]
[null,null,null,null,null,null,null,null,null,null,null,null,null,null,null,null,null,null,null,null,null,null,null,null,null,null,"FA00033","Fruits au sirop, au jus",-3.09,-3.221064162754304]
[null,null,null,null,null,null,null,null,null,null,null,null,null,null,null,null,null,null,null,null,null,null,null,null,null,null,"FA00037","Chewing gum",-3,-3.11]
[null,null,null,null,null,null,null,null,null,null,null,null,null,null,null,null,null,null,null,null,null,null,null,null,null,null,"FA00046","Digestif,liqueur,eau de vie",-2.92,-7.6517204301075257]
[null,null,null,null,null,null,null,null,null,null,null,null,null,null,null,null,null,null,null,null,null,null,null,null,null,null,"FA00022","Produits apéritifs, chips",-2.86,-3.062905027932961]
[null,null,null,null,null,null,null,null,null,null,null,null,null,null,null,null,null,null,null,null,null,null,null,null,null,null,"FA00025","Poudres petits déjeuners",-2.84,-3.2110964912280702]
[null,null,null,null,null,null,null,null,null,null,null,null,null,null,null,null,null,null,null,null,null,null,null,null,null,null,"FA00023","Panification sèche",-2.82,-3.1058451612903228]
[null,null,null,null,null,null,null,null,null,null,null,null,null,null,null,null,null,null,null,null,null,null,null,null,null,null,"FA00039","Sirop,concent,poudre boiss",-2.74,-2.7057856272838001]
[null,null,null,null,null,null,null,null,null,null,null,null,null,null,null,null,null,null,null,null,null,null,null,null,null,null,"FA00011","Vinaigre",-2.66,-2.0855339805825244]
[null,null,null,null,null,null,null,null,null,null,null,null,null,null,null,null,null,null,null,null,null,null,null,null,null,null,"FA00010","Huile",-2.64,-3.387003424657534]
[null,null,null,null,null,null,null,null,null,null,null,null,null,null,null,null,null,null,null,null,null,null,null,null,null,null,"FA00067","Emballage ménag,filtre café",-2.46,-2.7694949494949497]
[null,null,null,null,null,null,null,null,null,null,null,null,null,null,null,null,null,null,null,null,null,null,null,null,null,null,"FA00001","Plats cuisinés",-2.34,-3.14558263181214]
[null,null,null,null,null,null,null,null,null,null,null,null,null,null,null,null,null,null,null,null,null,null,null,null,null,null,"FA00048","Apéritifs alcoolisés",-2.2999999999999998,-2.8240223463687153]
[null,null,null,null,null,null,null,null,null,null,null,null,null,null,null,null,null,null,null,null,null,null,null,null,null,null,"FA00036","Confiserie de sucre",-2.2000000000000002,-5.6690895179801073]
[null,null,null,null,null,null,null,null,null,null,null,null,null,null,null,null,null,null,null,null,null,null,null,null,null,null,"FA00021","Patisserie industrielle",-2.14,-1.962223137093454]
[null,null,null,null,null,null,null,null,null,null,null,null,null,null,null,null,null,null,null,null,null,null,null,null,null,null,"FA00005","Légumes secs et deshydratés",-1.97,-4.53]
[null,null,null,null,null,null,null,null,null,null,null,null,null,null,null,null,null,null,null,null,null,null,null,null,null,null,"FA00057","Parapharmacie",-1.61,-0.99]
[null,null,null,null,null,null,null,null,null,null,null,null,null,null,null,null,null,null,null,null,null,null,null,null,null,null,"FA00045","Champagne, mousseux",-1.27,-4.2993548387096778]
[null,null,null,null,null,null,null,null,null,null,null,null,null,null,null,null,null,null,null,null,null,null,null,null,null,null,"FA00049","Apéritifs sans alcool",-1.23,-4.04]
[null,null,null,null,null,null,null,null,null,null,null,null,null,null,null,null,null,null,null,null,null,null,null,null,null,null,"FA00027","Pate A tartiner",-1.04,-1.6965648854961832]
[null,null,null,null,null,null,null,null,null,null,null,null,null,null,null,null,null,null,null,null,null,null,null,null,null,null,"FA00044","Vin (Table et Pays)",-0.85,-5.7944660194174764]
[null,null,null,null,null,null,null,null,null,null,null,null,null,null,null,null,null,null,null,null,null,null,null,null,null,null,"FA00063","Essuie tout",-0.69,-0.71247422680412376]
[null,null,null,null,null,null,null,null,null,null,null,null,null,null,null,null,null,null,null,null,null,null,null,null,null,null,"FA00018","Fruits secs, pruneaux",0.59,-3.1810223642172524]
[null,null,null,null,null,null,null,null,null,null,null,null,null,null,null,null,null,null,null,null,null,null,null,null,null,null,"FA00012","Sel, poivre, épices, herbes",0.8,1.5797101449275361E-2]

{"sheet":"Familles Plus mensuel","index":8,"n_rows":98,"n_cols":33,"rows_kept":98,"cut":false,"hidden":false,"merged":[[1,1,2,2],[11,1,11,3]]}
[null,null,null,null,null,null,null,null,null,null,null,null,null,null,null,null,null,null,null,null,null,null,null,null,"grprd","Fam/ray","Exhaustif","Leaders","Majeurs","MDD","PPX","mfab"]
[null,"Retour au sommaire",null,null,null,null,null,null,null,null,null,null,null,null,null,null,null,null,null,null,null,null,null,null,"FA00049","Apéritifs sans alcool",1.67,1.82,0.51,0.23,2.06,-0.17]
[null,null,null,null,null,null,null,null,null,null,null,null,null,null,null,null,null,null,"EXHAUSTIF","LEADERS","MAJEURS","MDD","PPX","MFAB","FA00045","Champagne, mousseux",0.97,0.94,0.71,0.97,1.01,0]
[null,null,null,null,null,null,null,null,null,null,null,null,null,null,null,null,null,null,null,null,null,null,null,null,"FA00046","Digestif,liqueur,eau de vie",0.96,1.5,1.1499999999999999,0.49,1.17,0.51]
[null,null,null,null,null,null,null,null,null,null,null,null,null,null,null,null,null,"Apéritifs sans alcool",1.67,1.82,0.51,0.23,2.06,-0.17,"FA00047","Whisky, bourbon",0.66,0.6,0.37,0.18,0.71,0.16]
[null,null,null,null,null,null,null,null,null,null,null,null,null,null,null,null,null,"Champagne, mousseux",0.97,0.94,0.71,0.97,1.01,0,"FA00048","Apéritifs alcoolisés",0.57999999999999996,0.7,0.73,0.37,0.65,0.21]
[null,null,null,null,null,null,null,null,null,null,null,null,null,null,null,null,null,"Digestif,liqueur,eau de vie",0.96,1.5,1.1499999999999999,0.49,1.17,0.51,"FA00007","Pates alimentaires",0.44,0.05,0.87,1.42,0.06,0.81]
[null,null,null,null,null,null,null,null,null,null,null,null,null,null,null,null,null,"Whisky, bourbon",0.66,0.6,0.37,0.18,0.71,0.16,"FA00081","Fruits mer, poisson nat, panés, grenouille escargot",0.41,-0.1,-0.43,0.78,0.16,-0.05,"Fruits mer, poisson nat, panés, grenouille escargot"]
[null,null,null,null,null,null,null,null,null,null,null,null,null,null,null,null,null,"Apéritifs alcoolisés",0.57999999999999996,0.7,0.73,0.37,0.65,0.21,"FA00079","Entrée,pizza,fast food surg",0.31,-0.13,-0.05,0.76,-0.02,0.06]
[null,null,null,null,null,null,null,null,null,null,null,null,null,null,null,null,null,"Pates alimentaires",0.44,0.05,0.87,1.42,0.06,0.81,"FA00043","Cidre, cider",0.3,0.36,-7.0000000000000007E-2,0.32,0.28999999999999998,0.39]
[null,null,null,null,null,null,null,null,null,null,null,null,null,null,null,null,null,"Fruits mer, poisson nat, panés, grenouille escargot",0.41,-0.1,-0.43,0.78,0.16,-0.05,"FA00018","Fruits secs, pruneaux",0.28999999999999998,0.45,-0.17,1.01,-0.03,1.87]
[null,null,null,null,null,"EXHAUSTIF",null,"MARQUES FABRICANTS",null,"MDD",null,"PPX",null,null,null,null,null,"Entrée,pizza,fast food surg",0.31,-0.13,-0.05,0.76,-0.02,0.06,"FA00030","Café torréfié",0.23,-0.06,0.01,1.1100000000000001,-0.01,0.74]
[null,{"$f":"+R5","v":"Apéritifs sans alcool"},null,null,null,{"$f":"+S5","v":1.67},null,{"$f":"+X5","v":-0.17},null,{"$f":"+V5","v":0.23},null,{"$f":"+W5","v":2.06},null,null,null,null,null,"Cidre, cider",0.3,0.36,-7.0000000000000007E-2,0.32,0.28999999999999998,0.39,"FA00053","Maquillage",0.23,0.89,1.52,-0.15,0.27,0.09]
[null,"Champagne, mousseux",null,null,null,0.97,null,{"$f":"+X6","v":0},null,0.97,null,1.01,null,null,null,null,null,"Fruits secs, pruneaux",0.28999999999999998,0.45,-0.17,1.01,-0.03,1.87,"FA00093","Petit électroménager",0.16,0.87,0.87,-0.6,0.22,0.09]
[null,"Digestif,liqueur,eau de vie",null,null,null,0.96,null,0.51,null,0.49,null,1.17,null,null,null,null,null,null,null,null,null,null,null,null,"FA00069","Insecticides",0.12,0.18,0.18,7.0000000000000007E-2,0.13,0.08]
[null,"Whisky, bourbon",null,null,null,0.66,null,0.16,null,0.18,null,0.71,null,null,null,null,null,null,null,null,null,null,null,null,"FA00044","Vin (Table et Pays)",0.11,-0.08,-0.13,-0.02,0.06,1.19]
[null,"Apéritifs alcoolisés",null,null,null,0.57999999999999996,null,0.21,null,0.37,null,0.65,null,null,null,null,null,null,null,null,null,null,null,null,"FA00066","Eponges, tampons A récurer",0.09,0.06,-0.01,0.1,0.09,0.01]
[null,"Pates alimentaires",null,null,null,0.44,null,0.81,null,1.42,null,0.06,null,null,null,null,null,null,null,null,null,null,null,null,"FA00033","Fruits au sirop, au jus",0.06,-0.05,-0.33,0.03,0.1,-0.02]
[null,"Fruits mer, poisson nat, panés, grenouille escargot",null,null,null,0.41,null,-0.05,null,0.78,null,0.16,null,null,null,null,null,null,null,null,null,null,null,null,"FA00014","Légumes vinaig, huile, saum",0.05,0.03,-0.43,-0.13,0.12,0.13]
[null,"Entrée,pizza,fast food surg",null,null,null,0.31,null,0.06,null,0.76,null,-0.02,null,null,null,null,null,null,null,null,null,null,null,null,"FA00011","Vinaigre",0.04,0,-0.11,0.02,0.06,0.02]
[null,"Cidre, cider",null,null,null,0.3,null,0.39,null,0.32,null,0.28999999999999998,null,null,null,null,null,null,null,null,null,null,null,null,"FA00009","Potages,bouill,aide culinai",0.02,0.06,-0.24,-0.03,0.02,0.12]
[null,"Fruits secs, pruneaux",null,null,null,0.28999999999999998,null,1.87,null,1.01,null,-0.03,null,null,null,null,null,null,null,null,null,null,null,null,"FA00022","Produits apéritifs, chips",0.02,-0.11,-0.55000000000000004,0.12,-0.04,0.25]
[null,null,null,null,null,null,null,null,null,null,null,null,null,null,null,null,null,null,null,null,null,null,null,null,"FA00003","Conserves de poissons",0.01,0.13,0.48,-0.23,0.11,-0.09]
[null,null,null,null,null,null,null,null,null,null,null,null,null,null,null,null,null,null,null,null,null,null,null,null,"FA00032","Miel, confiture, compote",0,-7.0000000000000007E-2,-0.37,-0.03,0.02,0.06]
[null,null,null,null,null,null,null,null,null,null,null,null,null,null,null,null,null,null,null,null,null,null,null,null,"FA00085","Saurisserie",-0.01,-0.21,-0.15,0.28000000000000003,-0.31,1.92]
[null,null,null,null,null,null,null,null,null,null,null,null,null,null,null,null,null,null,null,null,null,null,null,null,"FA00019","Aide patisserie, desserts",-0.02,-0.01,-0.24,-0.1,-0.01,-0.09]
[null,null,null,null,null,null,null,null,null,null,null,null,null,null,null,null,null,null,null,null,null,null,null,null,"FA00082","Légumes surgelés",-0.02,-0.21,-0.71,-0.01,-0.03,-0.05]
[null,null,null,null,null,null,null,null,null,null,null,null,null,null,null,null,null,null,null,null,null,null,null,null,"FA00012","Sel, poivre, épices, herbes",-0.03,-0.11,-0.41,0.03,-0.05,0.18]
[null,null,null,null,null,null,null,null,null,null,null,null,null,null,null,null,null,null,null,null,null,null,null,null,"FA00025","Poudres petits déjeuners",-0.03,-0.05,0.08,0.03,-0.04,-0.03]
[null,null,null,null,null,null,null,null,null,null,null,null,null,null,null,null,null,null,null,null,null,null,null,null,"FA00008","Farines, farineux, semoules",-0.04,-0.2,-0.22,0.21,-0.13,0.23]
[null,null,null,null,null,null,null,null,null,null,null,null,null,null,null,null,null,null,null,null,null,null,null,null,"FA00029","Chicorée,chic+caf,cafe solu",-0.05,-0.06,-0.14000000000000001,0.05,-7.0000000000000007E-2,-7.0000000000000007E-2]
[null,null,null,null,null,null,null,null,null,null,null,null,null,null,null,null,null,null,null,null,null,null,null,null,"FA00098","Traitements, engrais plant",-0.05,0.03,0.03,-0.02,-7.0000000000000007E-2,7.0000000000000007E-2]
[null,null,null,null,null,null,null,null,null,null,null,null,null,null,null,null,null,null,null,null,null,null,null,null,"FA00321","Protections incontinence adultes",-0.05,-0.1,-0.17,0.03,-0.09]
[null,null,null,null,null,null,null,null,null,null,null,null,null,null,null,null,null,null,null,null,null,null,null,null,"FA00004","Légumes en conserve",-0.06,-0.1,-0.21,-0.06,-7.0000000000000007E-2,0.03]
[null,null,null,null,null,null,null,null,null,null,null,null,null,null,null,null,null,null,null,null,null,null,null,null,"FA00039","Sirop,concent,poudre boiss",-0.06,-0.11,-0.27,-0.12,-0.04,0.11]
[null,null,null,null,null,null,null,null,null,null,null,null,null,null,null,null,null,null,null,null,null,null,null,null,"FA00083","Viande,volaill,charcut surg",-0.06,-0.44,-0.5,0.21,-0.35,0.31]
[null,null,null,null,null,null,null,null,null,null,null,null,null,null,null,null,null,null,null,null,null,null,null,null,"FA00013","Sauces, prép condimentaires",-7.0000000000000007E-2,-0.12,-0.39,-0.11,-0.06,0.2]
[null,null,null,null,null,null,null,null,null,null,null,null,null,null,null,null,null,null,null,null,null,null,null,null,"FA00063","Essuie tout",-7.0000000000000007E-2,0.02,0,-0.24,7.0000000000000007E-2,0.02]
[null,null,null,null,null,null,null,null,null,null,null,null,null,null,null,null,null,null,null,null,null,null,null,null,"FA00091","GANTS DE MENAGE JETABLES",-7.0000000000000007E-2,-0.09,-0.16,-0.14000000000000001,-0.03,-0.01]
[null,null,null,null,null,null,null,null,null,null,null,null,null,null,null,null,null,null,null,null,null,null,null,null,"FA00010","Huile",-0.08,-0.04,-0.02,-0.28999999999999998,-0.01,0.06]
[null,null,null,null,null,null,null,null,null,null,null,null,null,null,null,null,null,null,null,null,null,null,null,null,"FA00028","Thés et infusions",-0.08,-0.19,-0.6,0.02,-0.1,-0.03]
[null,null,null,null,null,null,null,null,null,null,null,null,null,null,null,null,null,null,null,null,null,null,null,null,"FA00097","Huile moteur",-0.08,0.03,0.03,-0.2,-0.04,7.0000000000000007E-2]
[null,null,null,null,null,null,null,null,null,null,null,null,null,null,null,null,null,null,null,null,null,null,null,null,"FA00024","Lait poudre,concentré adult",-0.09,-0.14000000000000001,-0.32,0.03,-0.12,0.09]
[null,null,null,null,null,null,null,null,null,null,null,null,null,null,null,null,null,null,null,null,null,null,null,null,"FA00031","Sucres et édulcorants",-0.09,-0.16,-0.18,0.05,-0.11,-0.14000000000000001]
[null,null,null,null,null,null,null,null,null,null,null,null,null,null,null,null,null,null,null,null,null,null,null,null,"FA00005","Légumes secs et deshydratés",-0.1,-1.1200000000000001,-1.91,0.04,-0.17,0.26]
[null,null,null,null,null,null,null,null,null,null,null,null,null,null,null,null,null,null,null,null,null,null,null,null,"FA00050","Rasage, aprés rasage",-0.1,-0.18,-0.16,0.36,-0.17,0.06]
[null,null,null,null,null,null,null,null,null,null,null,null,null,null,null,null,null,null,null,null,null,null,null,null,"FA00067","Emballage ménag,filtre café",-0.1,-0.23,-0.38,-0.04,-0.15,-0.04]
[null,null,null,null,null,null,null,null,null,null,null,null,null,null,null,null,null,null,null,null,null,null,null,null,"FA00020","Biscuits sucrés",-0.11,-0.16,-0.3,0.05,-0.19,-0.08]
[null,null,null,null,null,null,null,null,null,null,null,null,null,null,null,null,null,null,null,null,null,null,null,null,"FA00027","Pate A tartiner",-0.11,-0.2,-0.13,0.15,-0.2,-0.06]
[null,null,null,null,null,null,null,null,null,null,null,null,null,null,null,null,null,null,null,null,null,null,null,null,"FA00042","Bière, boisson base bière",-0.11,-0.15,-0.35,-0.03,-0.12,0.09]
[null,null,null,null,null,null,null,null,null,null,null,null,null,null,null,null,null,null,null,null,null,null,null,null,"FA00070","Cirage, entret,teintu cuir",-0.11,-0.12,-0.24,-0.68,-0.08]
[null,null,null,null,null,null,null,null,null,null,null,null,null,null,null,null,null,null,null,null,null,null,null,null,"FA00076","Beurre,margarine,creme frai",-0.11,-0.12,-0.6,-0.24,-0.05,-0.2]
[null,null,null,null,null,null,null,null,null,null,null,null,null,null,null,null,null,null,null,null,null,null,null,null,"FA00026","Céréales",-0.12,-0.24,-0.24,0.08,-0.22,0.01]
[null,null,null,null,null,null,null,null,null,null,null,null,null,null,null,null,null,null,null,null,null,null,null,null,"FA00062","Papier hygiénique",-0.12,-0.18,-0.55000000000000004,-7.0000000000000007E-2,-0.17,-0.02]
[null,null,null,null,null,null,null,null,null,null,null,null,null,null,null,null,null,null,null,null,null,null,null,null,"FA00006","Riz",-0.14000000000000001,-0.24,-7.0000000000000007E-2,7.0000000000000007E-2,-0.23,-0.09]
[null,null,null,null,null,null,null,null,null,null,null,null,null,null,null,null,null,null,null,null,null,null,null,null,"FA00015","Aliments chiens et chats",-0.14000000000000001,-0.24,-0.5,0.08,-0.21,0.16]
[null,null,null,null,null,null,null,null,null,null,null,null,null,null,null,null,null,null,null,null,null,null,null,null,"FA00041","Jus, nectar fruit,legume",-0.14000000000000001,-0.27,-0.48,0.01,-0.22,-0.73]
[null,null,null,null,null,null,null,null,null,null,null,null,null,null,null,null,null,null,null,null,null,null,null,null,"FA00060","Coton",-0.14000000000000001,-0.18,-0.27,-0.23,-0.06,0.02]
[null,null,null,null,null,null,null,null,null,null,null,null,null,null,null,null,null,null,null,null,null,null,null,null,"FA00095","Ampoules électriques",-0.14000000000000001,0.13,0.09,0.01,-0.25,-0.05]
[null,null,null,null,null,null,null,null,null,null,null,null,null,null,null,null,null,null,null,null,null,null,null,null,"FA00057","Parapharmacie",-0.16,-0.12,7.0000000000000007E-2,-0.66,-7.0000000000000007E-2,0.28999999999999998]
[null,null,null,null,null,null,null,null,null,null,null,null,null,null,null,null,null,null,null,null,null,null,null,null,"FA00068","Désodorisants d'intérieur",-0.16,-0.19,-0.28999999999999998,0.3,-0.31,0.06]
[null,null,null,null,null,null,null,null,null,null,null,null,null,null,null,null,null,null,null,null,null,null,null,null,"FA00040","Boisson rafraich ss alcool",-0.17,-0.19,-0.55000000000000004,-7.0000000000000007E-2,-0.19,-0.23]
[null,null,null,null,null,null,null,null,null,null,null,null,null,null,null,null,null,null,null,null,null,null,null,null,"FA00023","Panification sèche",-0.18,-0.12,-0.34,-0.36,-0.12,0.32]
[null,null,null,null,null,null,null,null,null,null,null,null,null,null,null,null,null,null,null,null,null,null,null,null,"FA00058","Hygiène fèminine",-0.2,-0.26,-0.31,-0.14000000000000001,-0.23,-0.03]
[null,null,null,null,null,null,null,null,null,null,null,null,null,null,null,null,null,null,null,null,null,null,null,null,"FA00084","Surgelés sucrés",-0.2,-0.23,0.46,0.16,-0.46,-0.06]
[null,null,null,null,null,null,null,null,null,null,null,null,null,null,null,null,null,null,null,null,null,null,null,null,"FA00054","Savon, bain, douche adu+bb",-0.21,-0.17,-0.5,-0.16,-0.22,0.04]
[null,null,null,null,null,null,null,null,null,null,null,null,null,null,null,null,null,null,null,null,null,null,null,null,"FA00077","Oeufs",-0.21,-0.01,0.2,-0.63,0.04,-0.49]
[null,null,null,null,null,null,null,null,null,null,null,null,null,null,null,null,null,null,null,null,null,null,null,null,"FA00092","Supports Informatiques",-0.21,0.38,0.38,-0.17,-0.22,0]
[null,null,null,null,null,null,null,null,null,null,null,null,null,null,null,null,null,null,null,null,null,null,null,null,"FA00075","Lait",-0.24,-0.21,-0.23,-0.34,-0.2,-0.05]
[null,null,null,null,null,null,null,null,null,null,null,null,null,null,null,null,null,null,null,null,null,null,null,null,"FA00080","Plats cuisinés tt prêt surg",-0.24,-0.56000000000000005,-1.02,-0.18,-0.32,0.01]
[null,null,null,null,null,null,null,null,null,null,null,null,null,null,null,null,null,null,null,null,null,null,null,null,"FA00036","Confiserie de sucre",-0.25,-0.13,-0.31,-0.14000000000000001,-0.27,-0.11]
[null,null,null,null,null,null,null,null,null,null,null,null,null,null,null,null,null,null,null,null,null,null,null,null,"FA00037","Chewing gum",-0.26,-0.19,-0.49,-0.02,-0.27]
[null,null,null,null,null,null,null,null,null,null,null,null,null,null,null,null,null,null,null,null,null,null,null,null,"FA00055","Hygiène dentaire",-0.26,-0.25,-0.08,-0.05,-0.3,0.06]
[null,null,null,null,null,null,null,null,null,null,null,null,null,null,null,null,null,null,null,null,null,null,null,null,"FA00073","Charcuterie libre service",-0.27,-0.19,-0.3,-0.28999999999999998,-0.28000000000000003,-0.03]
[null,null,null,null,null,null,null,null,null,null,null,null,null,null,null,null,null,null,null,null,null,null,null,null,"FA00017","Produits diététiques",-0.28999999999999998,-0.33,-0.81,-7.0000000000000007E-2,-0.31,0]
[null,null,null,null,null,null,null,null,null,null,null,null,null,null,null,null,null,null,null,null,null,null,null,null,"FA00065","Nettoyants ménager, débouch",-0.28999999999999998,-0.44,-0.62,0.03,-0.39,0.05]
[null,null,null,null,null,null,null,null,null,null,null,null,null,null,null,null,null,null,null,null,null,null,null,null,"FA00087","Traiteur libre service",-0.28999999999999998,-0.34,-0.56999999999999995,-0.3,-0.28999999999999998,-0.21]
[null,null,null,null,null,null,null,null,null,null,null,null,null,null,null,null,null,null,null,null,null,null,null,null,"FA00002","Paté,rillet,sciss,foie gras",-0.3,-0.02,-0.05,0.28999999999999998,-0.54,0.06]
[null,null,null,null,null,null,null,null,null,null,null,null,null,null,null,null,null,null,null,null,null,null,null,null,"FA00021","Patisserie industrielle",-0.3,-0.33,-0.79,-0.15,-0.38,-0.01]
[null,null,null,null,null,null,null,null,null,null,null,null,null,null,null,null,null,null,null,null,null,null,null,null,"FA00061","Mouchoirs papier, lingettes",-0.3,-0.16,-0.31,-0.71,-0.12,-0.02]
[null,null,null,null,null,null,null,null,null,null,null,null,null,null,null,null,null,null,null,null,null,null,null,null,"FA00090","Bas et collants",-0.31,0.41,0.69,-1.06,-0.03,-0.02]
[null,null,null,null,null,null,null,null,null,null,null,null,null,null,null,null,null,null,null,null,null,null,null,null,"FA00094","Piles",-0.32,-0.18,-0.1,-0.8,-0.15,0.04]
[null,null,null,null,null,null,null,null,null,null,null,null,null,null,null,null,null,null,null,null,null,null,null,null,"FA00001","Plats cuisinés",-0.34,-0.37,-0.52,-0.49,-0.28000000000000003,-0.18]
[null,null,null,null,null,null,null,null,null,null,null,null,null,null,null,null,null,null,null,null,null,null,null,null,"FA00096","LITIERES POUR ANIMAUX",-0.35,-0.82,-0.98,-0.39,-0.39,0.01]
[null,null,null,null,null,null,null,null,null,null,null,null,null,null,null,null,null,null,null,null,null,null,null,null,"FA00074","Yaourt,dessert lac,froma bl",-0.38,-0.54,-1,-0.3,-0.42,0.06]
[null,null,null,null,null,null,null,null,null,null,null,null,null,null,null,null,null,null,null,null,null,null,null,null,"FA00086","Pates fraIches",-0.38,-0.48,-0.78,-0.57999999999999996,-0.28000000000000003,-0.22]
[null,null,null,null,null,null,null,null,null,null,null,null,null,null,null,null,null,null,null,null,null,null,null,null,"FA00088","Panification industr fraIc",-0.39,-0.66,-0.67,0.03,-0.61,-0.25]
[null,null,null,null,null,null,null,null,null,null,null,null,null,null,null,null,null,null,null,null,null,null,null,null,"FA00056","Produits capillaires",-0.42,-0.57999999999999996,-0.14000000000000001,-0.37,-0.42,-0.2]
[null,null,null,null,null,null,null,null,null,null,null,null,null,null,null,null,null,null,null,null,null,null,null,null,"FA00072","Assouplissant, entret linge",-0.46,-0.61,-0.53,0.05,-0.6,-0.03]
[null,null,null,null,null,null,null,null,null,null,null,null,null,null,null,null,null,null,null,null,null,null,null,null,"FA00051","Déodorant,parfum,edt adu+bb",-0.49,-0.14000000000000001,-0.08,-1.71,-0.37,0.12]
[null,null,null,null,null,null,null,null,null,null,null,null,null,null,null,null,null,null,null,null,null,null,null,null,"FA00064","Prod vaisselle main,machine",-0.5,-0.77,-0.83,-0.32,-0.57999999999999996,-0.15]
[null,null,null,null,null,null,null,null,null,null,null,null,null,null,null,null,null,null,null,null,null,null,null,null,"FA00071","Lessives, savons de ménage",-0.53,-0.69,-0.38,0.05,-0.66,-0.13]
[null,null,null,null,null,null,null,null,null,null,null,null,null,null,null,null,null,null,null,null,null,null,null,null,"FA00016","Aliments infantiles",-0.56000000000000005,-0.54,-0.54,-0.3,-0.57999999999999996,0]
[null,null,null,null,null,null,null,null,null,null,null,null,null,null,null,null,null,null,null,null,null,null,null,null,"FA00052","Soins corps, visage adu+bb",-0.61,-0.56999999999999995,-0.15,-1.9,-0.44,0.43]
[null,null,null,null,null,null,null,null,null,null,null,null,null,null,null,null,null,null,null,null,null,null,null,null,"FA00038","Eaux",-0.92,-0.2,-0.27,-0.16,-1.08,-0.06]
[null,null,null,null,null,null,null,null,null,null,null,null,null,null,null,null,null,null,null,null,null,null,null,null,"FA00320","Changes complets, couches,culottes absorbantes bebes",-1.1299999999999999,-0.61,-0.95,-1.83,-0.81,-0.02]
[null,null,null,null,null,null,null,null,null,null,null,null,null,null,null,null,null,null,null,null,null,null,null,null,"FA00089","Vaisselle jetable",-2.64,-0.14000000000000001,-0.25,-2.4700000000000002,-3.65,-0.06]
[null,null,null,null,null,null,null,null,null,null,null,null,null,null,null,null,null,null,null,null,null,null,null,null,"FA00035","Confiserie de chocolat",-4.01,-3.67,-2.36,-2.16,-4.09,-8.6]

{"sheet":"Familles moins mensuel ","index":9,"n_rows":98,"n_cols":33,"rows_kept":98,"cut":false,"hidden":false,"merged":[[1,1,2,2],[11,1,11,3]]}
[null,null,null,null,null,null,null,null,null,null,null,null,null,null,null,null,null,null,null,null,null,null,null,null,"grprd","Fam/ray","Exhaustif","Leaders","Majeurs","MDD","PPX","mfab"]
[null,"Retour au sommaire",null,null,null,null,null,null,null,null,null,null,null,null,null,null,null,null,null,null,null,null,null,null,"FA00035","Confiserie de chocolat",-4.01,-3.67,-2.36,-2.16,-4.09,-8.6]
[null,null,null,null,null,null,null,null,null,null,null,null,null,null,null,null,null,null,"EXHAUSTIF","LEADERS","MAJEURS","MDD","PPX","MFAB","FA00089","Vaisselle jetable",-2.64,-0.14000000000000001,-0.25,-2.4700000000000002,-3.65,-0.06]
[null,null,null,null,null,null,null,null,null,null,null,null,null,null,null,null,null,null,null,null,null,null,null,null,"FA00320","Changes complets, couches,culottes absorbantes bebes",-1.1299999999999999,-0.61,-0.95,-1.83,-0.81,-0.02]
[null,null,null,null,null,null,null,null,null,null,null,null,null,null,null,null,null,"Confiserie de chocolat",-4.01,-3.67,-2.36,-2.16,-4.09,-8.6,"FA00038","Eaux",-0.92,-0.2,-0.27,-0.16,-1.08,-0.06]
[null,null,null,null,null,null,null,null,null,null,null,null,null,null,null,null,null,"Vaisselle jetable",-2.64,-0.14000000000000001,-0.25,-2.4700000000000002,-3.65,-0.06,"FA00052","Soins corps, visage adu+bb",-0.61,-0.56999999999999995,-0.15,-1.9,-0.44,0.43]
[null,null,null,null,null,null,null,null,null,null,null,null,null,null,null,null,null,"Changes complets, couches,culottes absor. bb",-1.1299999999999999,-0.61,-0.95,-1.83,-0.81,-0.02,"FA00016","Aliments infantiles",-0.56000000000000005,-0.54,-0.54,-0.3,-0.57999999999999996,0]
[null,null,null,null,null,null,null,null,null,null,null,null,null,null,null,null,null,"Eaux",-0.92,-0.2,-0.27,-0.16,-1.08,-0.06,"FA00071","Lessives, savons de ménage",-0.53,-0.69,-0.38,0.05,-0.66,-0.13,"Fruits mer, poisson nat, panés, grenouille escargot"]
[null,null,null,null,null,null,null,null,null,null,null,null,null,null,null,null,null,"Soins corps, visage adu+bb",-0.61,-0.56999999999999995,-0.15,-1.9,-0.44,0.43,"FA00064","Prod vaisselle main,machine",-0.5,-0.77,-0.83,-0.32,-0.57999999999999996,-0.15]
[null,null,null,null,null,null,null,null,null,null,null,null,null,null,null,null,null,"Aliments infantiles",-0.56000000000000005,-0.54,-0.54,-0.3,-0.57999999999999996,0,"FA00051","Déodorant,parfum,edt adu+bb",-0.49,-0.14000000000000001,-0.08,-1.71,-0.37,0.12]
[null,null,null,null,null,null,null,null,null,null,null,null,null,null,null,null,null,"Lessives, savons de ménage",-0.53,-0.69,-0.38,0.05,-0.66,-0.13,"FA00072","Assouplissant, entret linge",-0.46,-0.61,-0.53,0.05,-0.6,-0.03]
[null,null,null,null,null,"EXHAUSTIF",null,"MARQUES FABRICANTS",null,"MDD",null,"PPX",null,null,null,null,null,"Prod vaisselle main,machine",-0.5,-0.77,-0.83,-0.32,-0.57999999999999996,-0.15,"FA00056","Produits capillaires",-0.42,-0.57999999999999996,-0.14000000000000001,-0.37,-0.42,-0.2]
[null,{"$f":"+R5","v":"Confiserie de chocolat"},null,null,null,{"$f":"+S5","v":-4.01},null,{"$f":"+X5","v":-8.6},null,{"$f":"+V5","v":-2.16},null,{"$f":"+W5","v":-4.09},null,null,null,null,null,"Déodorant,parfum,edt adu+bb",-0.49,-0.14000000000000001,-0.08,-1.71,-0.37,0.12,"FA00088","Panification industr fraIc",-0.39,-0.66,-0.67,0.03,-0.61,-0.25]
[null,"Vaisselle jetable",null,null,null,-2.64,null,{"$f":"+X6","v":-0.06},null,-2.4700000000000002,null,-3.65,null,null,null,null,null,"Assouplissant, entret linge",-0.46,-0.61,-0.53,0.05,-0.6,-0.03,"FA00074","Yaourt,dessert lac,froma bl",-0.38,-0.54,-1,-0.3,-0.42,0.06]
[null,"Changes complets, couches,culottes absor. bb",null,null,null,-1.1299999999999999,null,-0.02,null,-1.83,null,-0.81,null,null,null,null,null,null,null,null,null,null,null,null,"FA00086","Pates fraIches",-0.38,-0.48,-0.78,-0.57999999999999996,-0.28000000000000003,-0.22]
[null,"Eaux",null,null,null,-0.92,null,-0.06,null,-0.16,null,-1.08,null,null,null,null,null,null,null,null,null,null,null,null,"FA00096","LITIERES POUR ANIMAUX",-0.35,-0.82,-0.98,-0.39,-0.39,0.01]
[null,"Soins corps, visage adu+bb",null,null,null,-0.61,null,0.43,null,-1.9,null,-0.44,null,null,null,null,null,null,null,null,null,null,null,null,"FA00001","Plats cuisinés",-0.34,-0.37,-0.52,-0.49,-0.28000000000000003,-0.18]
[null,"Aliments infantiles",null,null,null,-0.56000000000000005,null,0,null,-0.3,null,-0.57999999999999996,null,null,null,null,null,null,null,null,null,null,null,null,"FA00094","Piles",-0.32,-0.18,-0.1,-0.8,-0.15,0.04]
[null,"Lessives, savons de ménage",null,null,null,-0.53,null,-0.13,null,0.05,null,-0.66,null,null,null,null,null,null,null,null,null,null,null,null,"FA00090","Bas et collants",-0.31,0.41,0.69,-1.06,-0.03,-0.02]
[null,"Prod vaisselle main,machine",null,null,null,-0.5,null,-0.15,null,-0.32,null,-0.57999999999999996,null,null,null,null,null,null,null,null,null,null,null,null,"FA00002","Paté,rillet,sciss,foie gras",-0.3,-0.02,-0.05,0.28999999999999998,-0.54,0.06]
[null,"Déodorant,parfum,edt adu+bb",null,null,null,-0.49,null,0.12,null,-1.71,null,-0.37,null,null,null,null,null,null,null,null,null,null,null,null,"FA00021","Patisserie industrielle",-0.3,-0.33,-0.79,-0.15,-0.38,-0.01]
[null,"Assouplissant, entret linge",null,null,null,-0.46,null,-0.03,null,0.05,null,-0.6,null,null,null,null,null,null,null,null,null,null,null,null,"FA00061","Mouchoirs papier, lingettes",-0.3,-0.16,-0.31,-0.71,-0.12,-0.02]
[null,null,null,null,null,null,null,null,null,null,null,null,null,null,null,null,null,null,null,null,null,null,null,null,"FA00017","Produits diététiques",-0.28999999999999998,-0.33,-0.81,-7.0000000000000007E-2,-0.31,0]
[null,null,null,null,null,null,null,null,null,null,null,null,null,null,null,null,null,null,null,null,null,null,null,null,"FA00073","Charcuterie libre service",-0.27,-0.19,-0.3,-0.28999999999999998,-0.28000000000000003,-0.03]
[null,null,null,null,null,null,null,null,null,null,null,null,null,null,null,null,null,null,null,null,null,null,null,null,"FA00037","Chewing gum",-0.26,-0.19,-0.49,-0.02,-0.27]
[null,null,null,null,null,null,null,null,null,null,null,null,null,null,null,null,null,null,null,null,null,null,null,null,"FA00055","Hygiène dentaire",-0.26,-0.25,-0.08,-0.05,-0.3,0.06]
[null,null,null,null,null,null,null,null,null,null,null,null,null,null,null,null,null,null,null,null,null,null,null,null,"FA00036","Confiserie de sucre",-0.25,-0.13,-0.31,-0.14000000000000001,-0.27,-0.11]
[null,null,null,null,null,null,null,null,null,null,null,null,null,null,null,null,null,null,null,null,null,null,null,null,"FA00075","Lait",-0.24,-0.21,-0.23,-0.34,-0.2,-0.05]
[null,null,null,null,null,null,null,null,null,null,null,null,null,null,null,null,null,null,null,null,null,null,null,null,"FA00080","Plats cuisinés tt prêt surg",-0.24,-0.56000000000000005,-1.02,-0.18,-0.32,0.01]
[null,null,null,null,null,null,null,null,null,null,null,null,null,null,null,null,null,null,null,null,null,null,null,null,"FA00054","Savon, bain, douche adu+bb",-0.21,-0.17,-0.5,-0.16,-0.22,0.04]
[null,null,null,null,null,null,null,null,null,null,null,null,null,null,null,null,null,null,null,null,null,null,null,null,"FA00077","Oeufs",-0.21,-0.01,0.2,-0.63,0.04,-0.49]
[null,null,null,null,null,null,null,null,null,null,null,null,null,null,null,null,null,null,null,null,null,null,null,null,"FA00092","Supports Informatiques",-0.21,0.38,0.38,-0.17,-0.22,0]
[null,null,null,null,null,null,null,null,null,null,null,null,null,null,null,null,null,null,null,null,null,null,null,null,"FA00058","Hygiène fèminine",-0.2,-0.26,-0.31,-0.14000000000000001,-0.23,-0.03]
[null,null,null,null,null,null,null,null,null,null,null,null,null,null,null,null,null,null,null,null,null,null,null,null,"FA00084","Surgelés sucrés",-0.2,-0.23,0.46,0.16,-0.46,-0.06]
[null,null,null,null,null,null,null,null,null,null,null,null,null,null,null,null,null,null,null,null,null,null,null,null,"FA00023","Panification sèche",-0.18,-0.12,-0.34,-0.36,-0.12,0.32]
[null,null,null,null,null,null,null,null,null,null,null,null,null,null,null,null,null,null,null,null,null,null,null,null,"FA00040","Boisson rafraich ss alcool",-0.17,-0.19,-0.55000000000000004,-7.0000000000000007E-2,-0.19,-0.23]
[null,null,null,null,null,null,null,null,null,null,null,null,null,null,null,null,null,null,null,null,null,null,null,null,"FA00057","Parapharmacie",-0.16,-0.12,7.0000000000000007E-2,-0.66,-7.0000000000000007E-2,0.28999999999999998]
[null,null,null,null,null,null,null,null,null,null,null,null,null,null,null,null,null,null,null,null,null,null,null,null,"FA00068","Désodorisants d'intérieur",-0.16,-0.19,-0.28999999999999998,0.3,-0.31,0.06]
[null,null,null,null,null,null,null,null,null,null,null,null,null,null,null,null,null,null,null,null,null,null,null,null,"FA00006","Riz",-0.14000000000000001,-0.24,-7.0000000000000007E-2,7.0000000000000007E-2,-0.23,-0.09]
[null,null,null,null,null,null,null,null,null,null,null,null,null,null,null,null,null,null,null,null,null,null,null,null,"FA00015","Aliments chiens et chats",-0.14000000000000001,-0.24,-0.5,0.08,-0.21,0.16]
[null,null,null,null,null,null,null,null,null,null,null,null,null,null,null,null,null,null,null,null,null,null,null,null,"FA00041","Jus, nectar fruit,legume",-0.14000000000000001,-0.27,-0.48,0.01,-0.22,-0.73]
[null,null,null,null,null,null,null,null,null,null,null,null,null,null,null,null,null,null,null,null,null,null,null,null,"FA00060","Coton",-0.14000000000000001,-0.18,-0.27,-0.23,-0.06,0.02]
[null,null,null,null,null,null,null,null,null,null,null,null,null,null,null,null,null,null,null,null,null,null,null,null,"FA00095","Ampoules électriques",-0.14000000000000001,0.13,0.09,0.01,-0.25,-0.05]
[null,null,null,null,null,null,null,null,null,null,null,null,null,null,null,null,null,null,null,null,null,null,null,null,"FA00026","Céréales",-0.12,-0.24,-0.24,0.08,-0.22,0.01]
[null,null,null,null,null,null,null,null,null,null,null,null,null,null,null,null,null,null,null,null,null,null,null,null,"FA00062","Papier hygiénique",-0.12,-0.18,-0.55000000000000004,-7.0000000000000007E-2,-0.17,-0.02]
[null,null,null,null,null,null,null,null,null,null,null,null,null,null,null,null,null,null,null,null,null,null,null,null,"FA00020","Biscuits sucrés",-0.11,-0.16,-0.3,0.05,-0.19,-0.08]
[null,null,null,null,null,null,null,null,null,null,null,null,null,null,null,null,null,null,null,null,null,null,null,null,"FA00027","Pate A tartiner",-0.11,-0.2,-0.13,0.15,-0.2,-0.06]
[null,null,null,null,null,null,null,null,null,null,null,null,null,null,null,null,null,null,null,null,null,null,null,null,"FA00042","Bière, boisson base bière",-0.11,-0.15,-0.35,-0.03,-0.12,0.09]
[null,null,null,null,null,null,null,null,null,null,null,null,null,null,null,null,null,null,null,null,null,null,null,null,"FA00070","Cirage, entret,teintu cuir",-0.11,-0.12,-0.24,-0.68,-0.08]
[null,null,null,null,null,null,null,null,null,null,null,null,null,null,null,null,null,null,null,null,null,null,null,null,"FA00076","Beurre,margarine,creme frai",-0.11,-0.12,-0.6,-0.24,-0.05,-0.2]
[null,null,null,null,null,null,null,null,null,null,null,null,null,null,null,null,null,null,null,null,null,null,null,null,"FA00005","Légumes secs et deshydratés",-0.1,-1.1200000000000001,-1.91,0.04,-0.17,0.26]
[null,null,null,null,null,null,null,null,null,null,null,null,null,null,null,null,null,null,null,null,null,null,null,null,"FA00050","Rasage, aprés rasage",-0.1,-0.18,-0.16,0.36,-0.17,0.06]
[null,null,null,null,null,null,null,null,null,null,null,null,null,null,null,null,null,null,null,null,null,null,null,null,"FA00067","Emballage ménag,filtre café",-0.1,-0.23,-0.38,-0.04,-0.15,-0.04]
[null,null,null,null,null,null,null,null,null,null,null,null,null,null,null,null,null,null,null,null,null,null,null,null,"FA00024","Lait poudre,concentré adult",-0.09,-0.14000000000000001,-0.32,0.03,-0.12,0.09]
[null,null,null,null,null,null,null,null,null,null,null,null,null,null,null,null,null,null,null,null,null,null,null,null,"FA00031","Sucres et édulcorants",-0.09,-0.16,-0.18,0.05,-0.11,-0.14000000000000001]
[null,null,null,null,null,null,null,null,null,null,null,null,null,null,null,null,null,null,null,null,null,null,null,null,"FA00010","Huile",-0.08,-0.04,-0.02,-0.28999999999999998,-0.01,0.06]
[null,null,null,null,null,null,null,null,null,null,null,null,null,null,null,null,null,null,null,null,null,null,null,null,"FA00028","Thés et infusions",-0.08,-0.19,-0.6,0.02,-0.1,-0.03]
[null,null,null,null,null,null,null,null,null,null,null,null,null,null,null,null,null,null,null,null,null,null,null,null,"FA00097","Huile moteur",-0.08,0.03,0.03,-0.2,-0.04,7.0000000000000007E-2]
[null,null,null,null,null,null,null,null,null,null,null,null,null,null,null,null,null,null,null,null,null,null,null,null,"FA00013","Sauces, prép condimentaires",-7.0000000000000007E-2,-0.12,-0.39,-0.11,-0.06,0.2]
[null,null,null,null,null,null,null,null,null,null,null,null,null,null,null,null,null,null,null,null,null,null,null,null,"FA00063","Essuie tout",-7.0000000000000007E-2,0.02,0,-0.24,7.0000000000000007E-2,0.02]
[null,null,null,null,null,null,null,null,null,null,null,null,null,null,null,null,null,null,null,null,null,null,null,null,"FA00091","GANTS DE MENAGE JETABLES",-7.0000000000000007E-2,-0.09,-0.16,-0.14000000000000001,-0.03,-0.01]
[null,null,null,null,null,null,null,null,null,null,null,null,null,null,null,null,null,null,null,null,null,null,null,null,"FA00004","Légumes en conserve",-0.06,-0.1,-0.21,-0.06,-7.0000000000000007E-2,0.03]
[null,null,null,null,null,null,null,null,null,null,null,null,null,null,null,null,null,null,null,null,null,null,null,null,"FA00039","Sirop,concent,poudre boiss",-0.06,-0.11,-0.27,-0.12,-0.04,0.11]
[null,null,null,null,null,null,null,null,null,null,null,null,null,null,null,null,null,null,null,null,null,null,null,null,"FA00083","Viande,volaill,charcut surg",-0.06,-0.44,-0.5,0.21,-0.35,0.31]
[null,null,null,null,null,null,null,null,null,null,null,null,null,null,null,null,null,null,null,null,null,null,null,null,"FA00029","Chicorée,chic+caf,cafe solu",-0.05,-0.06,-0.14000000000000001,0.05,-7.0000000000000007E-2,-7.0000000000000007E-2]
[null,null,null,null,null,null,null,null,null,null,null,null,null,null,null,null,null,null,null,null,null,null,null,null,"FA00098","Traitements, engrais plant",-0.05,0.03,0.03,-0.02,-7.0000000000000007E-2,7.0000000000000007E-2]
[null,null,null,null,null,null,null,null,null,null,null,null,null,null,null,null,null,null,null,null,null,null,null,null,"FA00321","Protections incontinence adultes",-0.05,-0.1,-0.17,0.03,-0.09]
[null,null,null,null,null,null,null,null,null,null,null,null,null,null,null,null,null,null,null,null,null,null,null,null,"FA00008","Farines, farineux, semoules",-0.04,-0.2,-0.22,0.21,-0.13,0.23]
[null,null,null,null,null,null,null,null,null,null,null,null,null,null,null,null,null,null,null,null,null,null,null,null,"FA00012","Sel, poivre, épices, herbes",-0.03,-0.11,-0.41,0.03,-0.05,0.18]
[null,null,null,null,null,null,null,null,null,null,null,null,null,null,null,null,null,null,null,null,null,null,null,null,"FA00025","Poudres petits déjeuners",-0.03,-0.05,0.08,0.03,-0.04,-0.03]
[null,null,null,null,null,null,null,null,null,null,null,null,null,null,null,null,null,null,null,null,null,null,null,null,"FA00019","Aide patisserie, desserts",-0.02,-0.01,-0.24,-0.1,-0.01,-0.09]
[null,null,null,null,null,null,null,null,null,null,null,null,null,null,null,null,null,null,null,null,null,null,null,null,"FA00082","Légumes surgelés",-0.02,-0.21,-0.71,-0.01,-0.03,-0.05]
[null,null,null,null,null,null,null,null,null,null,null,null,null,null,null,null,null,null,null,null,null,null,null,null,"FA00085","Saurisserie",-0.01,-0.21,-0.15,0.28000000000000003,-0.31,1.92]
[null,null,null,null,null,null,null,null,null,null,null,null,null,null,null,null,null,null,null,null,null,null,null,null,"FA00032","Miel, confiture, compote",0,-7.0000000000000007E-2,-0.37,-0.03,0.02,0.06]
[null,null,null,null,null,null,null,null,null,null,null,null,null,null,null,null,null,null,null,null,null,null,null,null,"FA00003","Conserves de poissons",0.01,0.13,0.48,-0.23,0.11,-0.09]
[null,null,null,null,null,null,null,null,null,null,null,null,null,null,null,null,null,null,null,null,null,null,null,null,"FA00034","Chocolat en tablette",0.01,-0.09,0.08,0.08,-0.03,0.51]
[null,null,null,null,null,null,null,null,null,null,null,null,null,null,null,null,null,null,null,null,null,null,null,null,"FA00078","Fromages",0.01,0.1,-0.11,-0.09,0.05,0.2]
[null,null,null,null,null,null,null,null,null,null,null,null,null,null,null,null,null,null,null,null,null,null,null,null,"FA00009","Potages,bouill,aide culinai",0.02,0.06,-0.24,-0.03,0.02,0.12]
[null,null,null,null,null,null,null,null,null,null,null,null,null,null,null,null,null,null,null,null,null,null,null,null,"FA00022","Produits apéritifs, chips",0.02,-0.11,-0.55000000000000004,0.12,-0.04,0.25]
[null,null,null,null,null,null,null,null,null,null,null,null,null,null,null,null,null,null,null,null,null,null,null,null,"FA00011","Vinaigre",0.04,0,-0.11,0.02,0.06,0.02]
[null,null,null,null,null,null,null,null,null,null,null,null,null,null,null,null,null,null,null,null,null,null,null,null,"FA00014","Légumes vinaig, huile, saum",0.05,0.03,-0.43,-0.13,0.12,0.13]
[null,null,null,null,null,null,null,null,null,null,null,null,null,null,null,null,null,null,null,null,null,null,null,null,"FA00033","Fruits au sirop, au jus",0.06,-0.05,-0.33,0.03,0.1,-0.02]
[null,null,null,null,null,null,null,null,null,null,null,null,null,null,null,null,null,null,null,null,null,null,null,null,"FA00066","Eponges, tampons A récurer",0.09,0.06,-0.01,0.1,0.09,0.01]
[null,null,null,null,null,null,null,null,null,null,null,null,null,null,null,null,null,null,null,null,null,null,null,null,"FA00044","Vin (Table et Pays)",0.11,-0.08,-0.13,-0.02,0.06,1.19]
[null,null,null,null,null,null,null,null,null,null,null,null,null,null,null,null,null,null,null,null,null,null,null,null,"FA00069","Insecticides",0.12,0.18,0.18,7.0000000000000007E-2,0.13,0.08]
[null,null,null,null,null,null,null,null,null,null,null,null,null,null,null,null,null,null,null,null,null,null,null,null,"FA00093","Petit électroménager",0.16,0.87,0.87,-0.6,0.22,0.09]
[null,null,null,null,null,null,null,null,null,null,null,null,null,null,null,null,null,null,null,null,null,null,null,null,"FA00030","Café torréfié",0.23,-0.06,0.01,1.1100000000000001,-0.01,0.74]
[null,null,null,null,null,null,null,null,null,null,null,null,null,null,null,null,null,null,null,null,null,null,null,null,"FA00053","Maquillage",0.23,0.89,1.52,-0.15,0.27,0.09]
[null,null,null,null,null,null,null,null,null,null,null,null,null,null,null,null,null,null,null,null,null,null,null,null,"FA00018","Fruits secs, pruneaux",0.28999999999999998,0.45,-0.17,1.01,-0.03,1.87]
[null,null,null,null,null,null,null,null,null,null,null,null,null,null,null,null,null,null,null,null,null,null,null,null,"FA00043","Cidre, cider",0.3,0.36,-7.0000000000000007E-2,0.32,0.28999999999999998,0.39]
[null,null,null,null,null,null,null,null,null,null,null,null,null,null,null,null,null,null,null,null,null,null,null,null,"FA00079","Entrée,pizza,fast food surg",0.31,-0.13,-0.05,0.76,-0.02,0.06]
[null,null,null,null,null,null,null,null,null,null,null,null,null,null,null,null,null,null,null,null,null,null,null,null,"FA00081","Fruits mer, poisson nat, panés, grenouille escargot",0.41,-0.1,-0.43,0.78,0.16,-0.05]
[null,null,null,null,null,null,null,null,null,null,null,null,null,null,null,null,null,null,null,null,null,null,null,null,"FA00007","Pates alimentaires",0.44,0.05,0.87,1.42,0.06,0.81]
[null,null,null,null,null,null,null,null,null,null,null,null,null,null,null,null,null,null,null,null,null,null,null,null,"FA00048","Apéritifs alcoolisés",0.57999999999999996,0.7,0.73,0.37,0.65,0.21]
[null,null,null,null,null,null,null,null,null,null,null,null,null,null,null,null,null,null,null,null,null,null,null,null,"FA00047","Whisky, bourbon",0.66,0.6,0.37,0.18,0.71,0.16]
[null,null,null,null,null,null,null,null,null,null,null,null,null,null,null,null,null,null,null,null,null,null,null,null,"FA00046","Digestif,liqueur,eau de vie",0.96,1.5,1.1499999999999999,0.49,1.17,0.51]
[null,null,null,null,null,null,null,null,null,null,null,null,null,null,null,null,null,null,null,null,null,null,null,null,"FA00045","Champagne, mousseux",0.97,0.94,0.71,0.97,1.01,0]
[null,null,null,null,null,null,null,null,null,null,null,null,null,null,null,null,null,null,null,null,null,null,null,null,"FA00049","Apéritifs sans alcool",1.67,1.82,0.51,0.23,2.06,-0.17]

{"sheet":"Régions","index":10,"n_rows":33,"n_cols":7,"rows_kept":33,"cut":false,"hidden":false,"merged":[[24,3,24,5],[23,3,23,5],[13,3,13,5],[14,3,14,5],[15,3,15,5],[22,3,22,5],[21,3,21,5],[20,3,20,5],[11,3,11,5],[12,3,12,5],[1,1,2,2],[19,3,19,5],[16,3,16,5],[17,3,17,5],[18,3,18,5],[32,3,32,5],[25,3,25,5],[26,3,26,5],[27,3,27,5],[28,3,28,5],[31,3,31,5],[29,3,29,5],[30,3,30,5]]}
[]
[null,"Retour au sommaire"]
[]
[]
[]
[]
[]
[]
[]
[]
[]
["A0",null,null,"Alsace",null,null,-2.1800000000000002]
["A1",null,null,"Aquitaine",null,null,-1.7]
["A2",null,null,"Auvergne",null,null,-2.2799999999999998]
["A3",null,null,"Basse-Normandie",null,null,-1.82]
["A4",null,null,"Bourgogne",null,null,-2.0499999999999998]
["A5",null,null,"Bretagne",null,null,-2.0699999999999998]
["A6",null,null,"Centre",null,null,-2.1]
["A7",null,null,"Champagne-Ardenne",null,null,-2.06]
["CC",null,null,"Corse",null,null,-2.67]
["A9",null,null,"Franche-Comté",null,null,-3.61]
["B0",null,null,"Haute-Normandie",null,null,-1.82]
["B1",null,null,"Île-de-France",null,null,-1.71]
["B2",null,null,"Languedoc-Roussillon",null,null,-2.06]
["B3",null,null,"Limousin",null,null,-2.5]
["B4",null,null,"Lorraine",null,null,-1.89]
["B5",null,null,"Midi-Pyrénées",null,null,-2.12]
["B6",null,null,"Nord-Pas-de-Calais",null,null,-1.73]
["B7",null,null,"Pays de la Loire",null,null,-2.59]
["B8",null,null,"Picardie",null,null,-1.69]
["B9",null,null,"Poitou-Charentes",null,null,-2.2599999999999998]
["C0",null,null,"Provence-Alpes-Côte d'Azur",null,null,-2.5499999999999998]
[null,null,null,"Rhône-Alpes",null,null,-2.12]